Service area,Service sub division,TVBC Service,Expense type,Detailed expense type,TVBC account code,Date Paid,Transaction Reference, Nett Value ,Supplier Name
Cultural & Related,Recreation & Sport,Estates and Economic Development ,Premises related Expenditure,Water Services,Water And Sewerage Charges,31/10/2019,283338,-5298.56,Business Stream
Cultural & Related,Recreation & Sport,Estates and Economic Development ,Premises related Expenditure,Water Services,Water And Sewerage Charges,03/10/2019,281457,-7452.94,Castle Water Limited
Central Services to the Public,Management & Support Services,IT,Support Services,IT,IT Hardware costs,31/10/2019,282641,-4794,Xma Limited
Central Services to the Public,Management & Support Services,Estates and Economic Development ,Premises related Expenditure,Energy Costs,Gas,24/10/2019,282833,-1891.27,Total Gas & Power Ltd
Environmental & Regulatory,Regulatory Services,Estates and Economic Development ,Premises related Expenditure,Water Services,Water And Sewerage Charges,31/10/2019,281490,-1538.3,Business Stream
External Trading Accounts,Business Parks,Estates and Economic Development ,Premises related Expenditure,Miscellaneous Expenses,Service Charge,24/10/2019,282500,-1382,Test Valley Borough Council
Central Services to the Public,Management & Support Services,Estates and Economic Development ,Premises related Expenditure,Water Services,Water And Sewerage Charges,31/10/2019,278593,-1007.3,Business Stream
Cultural & Related,Recreation & Sport,Estates and Economic Development ,Premises related Expenditure,Water Services,Water And Sewerage Charges,31/10/2019,279021,-839.07,Business Stream
Planning & Development,Community Development,Community and Leisure ,Supplies & Services,Grants & Subscriptions,Grants,16/10/2019,282549,500,"Mottisfont Abbey, National Trust"
Planning & Development,Economic Development,Estates and Economic Development ,Supplies & Services,Grants & Subscriptions,Grants,02/10/2019,281533,500,Personal Data - Data Protection Act 1998
Planning & Development,Economic Development,Estates and Economic Development ,Supplies & Services,Grants & Subscriptions,Grants,09/10/2019,282065,500,Personal Data - Data Protection Act 1998
Planning & Development,Economic Development,Estates and Economic Development ,Supplies & Services,Grants & Subscriptions,Grants,09/10/2019,282066,500,Artspace Interior Design Ltd
Cultural & Related,Open Spaces,Environmental,Supplies & Services,Miscellaneous Expenses,Waste Collection,24/10/2019,281040,417.5,Raymond Brown Waste Solutions Ltd
Central Services to the Public,Local Tax Collection,Revenues,Employees,Indirect Employee Expenses,Lodging Allowance ,31/10/2019,283697,450,Personal Data - Data Protection Act 1998
Central Services to the Public,Local Tax Collection,Revenues,Employees,Indirect Employee Expenses,Commuter Expenses,31/10/2019,283697,50.1,Personal Data - Data Protection Act 1998
Environmental & Regulatory,Regulatory Services,Estates and Economic Development ,Premises related Expenditure,Water Services,Water And Sewerage Charges,31/10/2019,279018,501.42,Business Stream
Central Services to the Public,Management & Support Services,Revenues,Supplies & Services,Miscellaneous Expenses,Medical Fees,24/10/2019,283097,19,University Hospital Soton Nhs Foundation Trst
Central Services to the Public,Management & Support Services,Estates and Economic Development ,Supplies & Services,Miscellaneous Expenses,Medical Fees,24/10/2019,283097,19,University Hospital Soton Nhs Foundation Trst
Planning & Development,Development Control,Planning & Building,Supplies & Services,Miscellaneous Expenses,Medical Fees,24/10/2019,283097,19,University Hospital Soton Nhs Foundation Trst
"Highways, Roads & Transport",Parking Services,Plan Pol & Transport,Supplies & Services,Miscellaneous Expenses,Medical Fees,24/10/2019,283097,233,University Hospital Soton Nhs Foundation Trst
Cultural & Related,Open Spaces,Environmental,Supplies & Services,Miscellaneous Expenses,Medical Fees,24/10/2019,283097,57,University Hospital Soton Nhs Foundation Trst
Environmental & Regulatory,Street Cleansing (not chargeable to Highways),Environmental,Supplies & Services,Miscellaneous Expenses,Medical Fees,24/10/2019,283097,19,University Hospital Soton Nhs Foundation Trst
Environmental & Regulatory,Waste management,Environmental,Supplies & Services,Miscellaneous Expenses,Medical Fees,24/10/2019,283097,95,University Hospital Soton Nhs Foundation Trst
Environmental & Regulatory,Regulatory Services,Housing and Environmental Health ,Supplies & Services,Grants and subscriptions,Capital Grants,03/10/2019,281654,512,Epw Construction Ltd
Planning & Development,Community Development,Community and Leisure ,Supplies & Services,Grants & Subscriptions,Grants,31/10/2019,283689,524.75,Barton Stacey Parish Council
Planning & Development,Community Development,Community and Leisure ,Supplies & Services,Grants & Subscriptions,Grants,16/10/2019,282545,527.76,North Baddesley Friendship Circle
Environmental & Regulatory,Waste management,Environmental,Transport Related Expenditure,Direct Transport Costs,External Garages,03/10/2019,281289,350.23,Dennis Eagle Ltd
Environmental & Regulatory,Waste management,Environmental,Transport Related Expenditure,Direct Transport Costs,Repair Materials,03/10/2019,281289,95.19,Dennis Eagle Ltd
Central Services to the Public,Elections,Legal & Democratic,Supplies & Services,"Printing, Stationery & General Office Expenses",Written Media,17/10/2019,281836,486,Wildy & Sons Ltd
Cultural & Related,Open Spaces,Community and Leisure ,Premises related Expenditure,Grounds Maintenance Costs,Gm - Additional Works,24/10/2019,281864,448,Flower Farms Ltd
Cultural & Related,Open Spaces,Community and Leisure ,Premises related Expenditure,Grounds Maintenance Costs,Gm - Additional Works,03/10/2019,280768,450,Evergreen Rabbit Control
Cultural & Related,Culture & Heritage,Community and Leisure ,Supplies & Services,Miscellaneous Expenses,Booking Of Acts,17/10/2019,282512,450,The Pied Piper Theatre Company
Planning & Development,Development Control,Planning & Building,Supplies & Services,"Printing, Stationery & General Office Expenses",Postage Costs,17/10/2019,279976,22.9,Posturite Limited
Planning & Development,Development Control,Planning & Building,Supplies & Services,Miscellaneous Expenses,Health And Safety,17/10/2019,279976,429.15,Posturite Limited
Central Services to the Public,Management & Support Services,Environmental,Transport Related Expenditure,Direct Transport Costs,Repair Materials,24/10/2019,282086,454.32,Dennis Eagle Ltd
Environmental & Regulatory,Waste management,Environmental,Employees,Indirect Employee Expenses,Agency Staff - Waged Posts,24/10/2019,282373,456,Aligra
Planning & Development,Economic Development,Estates and Economic Development ,Supplies & Services,"Printing, Stationery & General Office Expenses",External Printing,31/10/2019,282932,460,Bulpitt Print Ltd
Environmental & Regulatory,Waste management,Environmental,Employees,Indirect Employee Expenses,Agency Staff - Waged Posts,17/10/2019,282610,277.64,24-7 Staffing
Environmental & Regulatory,Waste management,Environmental,Employees,Indirect Employee Expenses,Agency Staff - Waged Posts,17/10/2019,282610,182.99,24-7 Staffing
Central Services to the Public,Management & Support Services,Estates and Economic Development ,Premises related Expenditure,Water Services,Water And Sewerage Charges,24/10/2019,282945,554.26,Castle Water Limited
Cultural & Related,Culture & Heritage,Community and Leisure ,Supplies & Services,Catering,Non-Contract Catering,17/10/2019,282029,461.92,Carlsberg Uk Ltd
Central Services to the Public,Management & Support Services,Environmental,Transport Related Expenditure,Direct Transport Costs,Vehicles and Plant,24/10/2019,282926,463.8,Palfinger Uk
Cultural & Related,Open Spaces,Environmental,Supplies & Services,Miscellaneous Expenses,Waste Collection,10/10/2019,279329,467.5,Raymond Brown Waste Solutions Ltd
Cultural & Related,Culture & Heritage,Community and Leisure ,Supplies & Services,Miscellaneous Expenses,Booking Of Acts,17/10/2019,282522,562.5,Chantry Dance Company
Cultural & Related,Culture & Heritage,Community and Leisure ,Supplies & Services,"Equipment, Furniture & Materials",Purchase Equip + Materials,10/10/2019,282084,470,Avenue Audio Ltd
External Trading Accounts,Property Investments,Estates and Economic Development ,Premises related Expenditure,Grounds Maintenance Costs,Grounds Maintenance Contracts,24/10/2019,282626,473.19,Landmarks Sustainability Ltd
Cultural & Related,Culture & Heritage,Estates and Economic Development ,Premises related Expenditure,Water Services,Water And Sewerage Charges,24/10/2019,282955,569.44,Castle Water Limited
External Trading Accounts,Economic Development,Estates and Economic Development ,Supplies & Services,Miscellaneous Expenses,Promotions / Special Events,17/10/2019,282079,475,Breeze People Ltd
Cultural & Related,Culture & Heritage,Community and Leisure ,Supplies & Services,"Equipment, Furniture & Materials",Purchase Equip + Materials,17/10/2019,274996,475,Site Equip Ltd
Planning & Development,Planning Policy,Plan Pol & Transport,Supplies & Services,Communications & Computing,Hardware Maintenance,10/10/2019,281267,477,Printmax
Central Services to the Public,Management & Support Services,Estates and Economic Development ,Premises related Expenditure,Water Services,Water And Sewerage Charges,10/10/2019,282089,572.74,Castle Water Limited
Planning & Development,Development Control,Planning & Building,Supplies & Services,Services,Training Courses,30/10/2019,283571,480,Attwells
Environmental & Regulatory,Regulatory Services,Legal & Democratic,Supplies & Services,Miscellaneous Expenses,Data Access Requests,03/10/2019,281268,560,Harwin Associates Ltd
Environmental & Regulatory,Waste management,Environmental,Transport Related Expenditure,Direct Transport Costs,Repair Materials,31/10/2019,283365,488.97,Pitter Commercials Ltd
Cultural & Related,Culture & Heritage,Estates and Economic Development ,Premises related Expenditure,Water Services,Water And Sewerage Charges,03/10/2019,281475,588.42,Castle Water Limited
Central Services to the Public,Management & Support Services,Estates and Economic Development ,Third Party Payments,Other Establishments,Private Contractors,31/10/2019,283585,496,Smrs Fabrication & Welding Ltd
Cultural & Related,Culture & Heritage,Estates and Economic Development ,Premises related Expenditure,Repairs Alterations & Maintenance of Buildings,Planned Maintenance - Non Est,31/10/2019,283581,496.94,Bpc Energy Ltd
Environmental & Regulatory,Community Development,Community and Leisure ,Supplies & Services,Services,Training Courses,24/10/2019,282875,498,Resolve (Asb)
Central Services to the Public,Management & Support Services,HR Services,Supplies & Services,Services,Training Courses,24/10/2019,282369,499,Cipd Enterprises Ltd
Planning & Development,Development Control,Planning & Building,Supplies & Services,Communications & Computing,Hardware Maintenance,10/10/2019,281598,499,Temple Knight Plc
External Trading Accounts,Business Parks,Estates and Economic Development ,Supplies & Services,Services,Professional Fees,10/10/2019,281823,500,Smith Price Llp
Cultural & Related,Culture & Heritage,Community and Leisure ,Supplies & Services,Miscellaneous Expenses,Booking Of Acts,03/10/2019,281265,600,Personal Data - Data Protection Act 1998
Environmental & Regulatory,Street Cleansing (not chargeable to Highways),Environmental,Supplies & Services,"Equipment, Furniture & Materials",Purchase Equip + Materials,03/10/2019,281242,509.22,Active Staff Ltd
Central Services to the Public,Management & Support Services,Finance,Supplies & Services,"Printing, Stationery & General Office Expenses",Postage Costs,03/10/2019,281266,513.12,Whistl Uk Ltd
Planning & Development,Development Control,Planning & Building,Supplies & Services,"Equipment, Furniture & Materials",Purchase Equip + Materials,03/10/2019,281038,495,Haywood Office Services Ltd
Planning & Development,Development Control,Planning & Building,Supplies & Services,"Printing, Stationery & General Office Expenses",Postage Costs,03/10/2019,281038,25,Haywood Office Services Ltd
Cultural & Related,Open Spaces,Environmental,Supplies & Services,Miscellaneous Expenses,Waste Collection,24/10/2019,280002,522.5,Raymond Brown Waste Solutions Ltd
Planning & Development,Development Control,Planning & Building,Supplies & Services,Services,Training Courses,31/10/2019,283557,640,Hart District Council
Central Services to the Public,Local Tax Collection,Revenues,Supplies & Services,Communications & Computing,Software Maintenance,24/10/2019,282615,550,Northgate Public Services Uk Ltd
Environmental & Regulatory,Regulatory Services,Housing and Environmental Health ,Supplies & Services,Services,Professional Fees,02/10/2019,280820,554.17,Stable Close Equine Practice
Central Services to the Public,Local Tax Collection,Revenues,Supplies & Services,"Equipment, Furniture & Materials",Equipment Lease Rentals,17/10/2019,282511,55.42,Neopost Finance Ltd
Central Services to the Public,Local Tax Collection,Revenues,Supplies & Services,"Equipment, Furniture & Materials",Equipment Lease Rentals,17/10/2019,282511,221.69,Neopost Finance Ltd
Housing Services,Housing Benefits ,Revenues,Supplies & Services,"Equipment, Furniture & Materials",Equipment Lease Rentals,17/10/2019,282511,138.56,Neopost Finance Ltd
Central Services to the Public,Local Tax Collection,Revenues,Supplies & Services,"Equipment, Furniture & Materials",Equipment Lease Rentals,17/10/2019,282511,138.56,Neopost Finance Ltd
Planning & Development,Economic Development,Estates and Economic Development ,Supplies & Services,Services,Training Courses,31/10/2019,283299,674,Valley Leisure Limited
Cultural & Related,Open Spaces,Environmental,Supplies & Services,"Equipment, Furniture & Materials",Purchase Equip + Materials,24/10/2019,281945,685.1,Rigby Taylor Ltd
Central Services to the Public,Management & Support Services,IT,Support Services,IT,IT Hardware costs,24/10/2019,278039,572.5,Cetus Solutions Ltd
Central Services to the Public,Management & Support Services,IT,Supplies & Services,Communications & Computing,Computer Software,17/10/2019,282621,576.01,Nuvola Distribution Ltd
Cultural & Related,Culture & Heritage,Estates and Economic Development ,Supplies & Services,Miscellaneous Expenses,Waste Collection,17/10/2019,282482,169.82,Suez Recycling And Recovery Uk Ltd
Central Services to the Public,Management & Support Services,Estates and Economic Development ,Supplies & Services,Miscellaneous Expenses,Waste Collection,17/10/2019,282482,406.22,Suez Recycling And Recovery Uk Ltd
Cultural & Related,Open Spaces,Environmental,Supplies & Services,Communications & Computing,Mobile Telephone Charges,31/10/2019,282858,203.66,Vodafone Limited
Environmental & Regulatory,Street Cleansing (not chargeable to Highways),Environmental,Supplies & Services,Communications & Computing,Mobile Telephone Charges,31/10/2019,282858,169.44,Vodafone Limited
Environmental & Regulatory,Waste management,Environmental,Supplies & Services,Communications & Computing,Mobile Telephone Charges,31/10/2019,282858,147.16,Vodafone Limited
Central Services to the Public,Management & Support Services,Environmental,Supplies & Services,Communications & Computing,Mobile Telephone Charges,31/10/2019,282858,35,Vodafone Limited
Central Services to the Public,Management & Support Services,Environmental,Supplies & Services,Communications & Computing,Mobile Telephone Charges,31/10/2019,282858,21,Vodafone Limited
Central Services to the Public,Management & Support Services,Estates and Economic Development ,Third Party Payments,Other Establishments,Private Contractors,10/10/2019,281877,579,Waterside Blinds
Cultural & Related,Open Spaces,Community and Leisure ,Premises related Expenditure,Grounds Maintenance Costs,Non Contract Tree Works,17/10/2019,281588,580.6,Hrg Tree Services Ltd
Cultural & Related,Open Spaces,Environmental,Supplies & Services,"Equipment, Furniture & Materials",Purchase Equip + Materials,03/10/2019,280804,585,Tudor Environmental
Environmental & Regulatory,Waste management,Environmental,Employees,Indirect Employee Expenses,Agency Staff - Waged Posts,31/10/2019,281247,587.4,Golden Orb Solutions
Cultural & Related,Recreation & Sport,Community and Leisure ,Premises related Expenditure,Grounds Maintenance Costs,Gm - Additional Works,31/10/2019,281039,589.1,Broxap Limited (Stadia Sports )
Central Services to the Public,Management & Support Services,Environmental,Supplies & Services,"Equipment, Furniture & Materials",Maintenance Equip + Materials,03/10/2019,281280,589.2,Mb Garage Equipment
Planning & Development,Planning Policy,Plan Pol & Transport,Supplies & Services,Miscellaneous Expenses,Advertising,03/10/2019,279699,590.41,Newsquest Media Group Ltd
Cultural & Related,Culture & Heritage,Estates and Economic Development ,Premises related Expenditure,Repairs Alterations & Maintenance of Buildings,Building Maint - Non Estates,24/10/2019,283102,600,Wessex Response
Cultural & Related,Culture & Heritage,Community and Leisure ,Premises related Expenditure,Repairs Alterations & Maintenance of Buildings,Building Maint - Non Estates,31/10/2019,283638,600,Res Systems Ltd
Central Services,Corporate & Democratic Core,Corporate & Democratic,Supplies & Services,Catering,Catering,03/10/2019,281252,600,Court House Catering
Environmental & Regulatory,Street Cleansing (not chargeable to Highways),Environmental,Employees,Indirect Employee Expenses,Agency Staff - Waged Posts,03/10/2019,281244,499.5,Active Staff Ltd
Environmental & Regulatory,Street Cleansing (not chargeable to Highways),Environmental,Employees,Indirect Employee Expenses,Agency Staff - Waged Posts,10/10/2019,281940,405,Active Staff Ltd
Environmental & Regulatory,Waste management,Environmental,Employees,Indirect Employee Expenses,Agency Staff - Waged Posts,03/10/2019,281244,101.25,Active Staff Ltd
Environmental & Regulatory,Waste management,Environmental,Employees,Indirect Employee Expenses,Agency Staff - Waged Posts,10/10/2019,281940,195.75,Active Staff Ltd
Cultural & Related,Recreation & Sport,Estates and Economic Development ,Premises related Expenditure,Water Services,Water And Sewerage Charges,24/10/2019,282951,725.35,Castle Water Limited
Environmental & Regulatory,Street Cleansing (not chargeable to Highways),Environmental,Employees,Indirect Employee Expenses,Agency Staff - Waged Posts,03/10/2019,281620,506.25,Active Staff Ltd
Environmental & Regulatory,Waste management,Environmental,Employees,Indirect Employee Expenses,Agency Staff - Waged Posts,03/10/2019,281620,101.25,Active Staff Ltd
External Trading Accounts,Business Parks,Estates and Economic Development ,Supplies & Services,Miscellaneous Expenses,Waste Collection,10/10/2019,281617,608.16,Basingstoke Skip Hire & Sthrn Waste Mgt Ltd
Central Services to the Public,Management & Support Services,Finance,Supplies & Services,"Printing, Stationery & General Office Expenses",Postage Costs,10/10/2019,281349,618.25,Whistl Uk Ltd
Cultural & Related,Open Spaces,Community and Leisure ,Premises related Expenditure,Grounds Maintenance Costs,Gm - Additional Works,31/10/2019,283698,624,Personal Data - Data Protection Act 1998
Cultural & Related,Recreation & Sport,Estates and Economic Development ,Premises related Expenditure,Water Services,Water And Sewerage Charges,03/10/2019,281455,749.81,Castle Water Limited
External Trading Accounts,Economic Development,Estates and Economic Development ,Premises related Expenditure,Repairs Alterations & Maintenance of Buildings,Building Maint - Non Estates,31/10/2019,283103,625,A C Wallbridge & Co Ltd
Environmental & Regulatory,Regulatory Services,Estates and Economic Development ,Supplies & Services,Grants & Subscriptions,Contributions,31/10/2019,283700,750,The Bridge
Planning & Development,Economic Development,Estates and Economic Development ,Supplies & Services,Grants & Subscriptions,Grants,16/10/2019,282541,750,Personal Data - Data Protection Act 1998
Planning & Development,Community Development,Community and Leisure ,Supplies & Services,Grants & Subscriptions,Grants,17/10/2019,282646,750,Penton Mewsey Parish Council
Central Services to the Public,Management & Support Services,Estates and Economic Development ,Third Party Payments,Other Establishments,Private Contractors,10/10/2019,281856,635,Gibson & Co Ceilings
Central Services to the Public,Management & Support Services,IT,Supplies & Services,Communications & Computing,Computer Hardware,24/10/2019,282867,640,Pure Technology Group
Environmental & Regulatory,Waste management,Environmental,Employees,Indirect Employee Expenses,Agency Staff - Waged Posts,31/10/2019,282901,641.82,Simple Recruitment Services Ltd
Environmental & Regulatory,Waste management,Environmental,Employees,Indirect Employee Expenses,Agency Staff - Waged Posts,24/10/2019,282372,642.4,Aligra
Central Services to the Public,Management & Support Services,Environmental,Transport Related Expenditure,Direct Transport Costs,Oils,31/10/2019,283313,643.7,Fuchs Lubricants (Uk) Plc
Central Services to the Public,Management & Support Services,Estates and Economic Development ,Third Party Payments,Other Establishments,Private Contractors,31/10/2019,283369,645,Alarms & Electrical (Devizes) Ltd
Central Services to the Public,Management & Support Services,Legal & Democratic,Supplies & Services,Services,Professional Fees,02/10/2019,281503,650,9 Stone Buildings
Cultural & Related,Open Spaces,Environmental,Supplies & Services,"Equipment, Furniture & Materials",Purchase Equip + Materials,24/10/2019,282481,650,Fleet (Line Markers) Ltd
Central Services to the Public,Management & Support Services,Environmental,Supplies & Services,"Equipment, Furniture & Materials",Maintenance Equip + Materials,31/10/2019,282905,650,Mb Garage Equipment
Environmental & Regulatory,Waste management,Environmental,Employees,Indirect Employee Expenses,Agency Staff - Waged Posts,24/10/2019,282371,655.48,Aligra
Environmental & Regulatory,Street Cleansing (not chargeable to Highways),Environmental,Supplies & Services,"Equipment, Furniture & Materials",Purchase Equip + Materials,17/10/2019,282364,659.36,Green Machines Sweepers Uk Ltd
Cultural & Related,Culture & Heritage,Community and Leisure ,Supplies & Services,Catering,Non-Contract Catering,03/10/2019,281350,661.48,Carlsberg Uk Ltd
Central Services to the Public,Management & Support Services,Legal & Democratic,Supplies & Services,"Printing, Stationery & General Office Expenses",Stationery,10/10/2019,281627,423.07,Lyreco Uk Ltd
Central Services to the Public,Local Land Charges,Legal & Democratic,Supplies & Services,"Printing, Stationery & General Office Expenses",Stationery,10/10/2019,281627,43.99,Lyreco Uk Ltd
Central Services to the Public,Elections,Legal & Democratic,Supplies & Services,"Printing, Stationery & General Office Expenses",Stationery,10/10/2019,281627,161.87,Lyreco Uk Ltd
Environmental & Regulatory,Regulatory Services,Legal & Democratic,Supplies & Services,"Printing, Stationery & General Office Expenses",Stationery,10/10/2019,281627,14.79,Lyreco Uk Ltd
Central Services,Corporate & Democratic Core,Corporate & Democratic,Supplies & Services,"Printing, Stationery & General Office Expenses",Stationery,10/10/2019,281627,21.14,Lyreco Uk Ltd
Cultural & Related,Culture & Heritage,Community and Leisure ,Supplies & Services,Miscellaneous Expenses,Booking Of Acts,24/10/2019,276553,800,Torn Off Strips (Torn Entertainment)
Planning & Development,Community Development,Community and Leisure ,Supplies & Services,Grants & Subscriptions,Grants,24/10/2019,283119,800,Tangley Parish Council
Environmental & Regulatory,Waste management,Environmental,Transport Related Expenditure,Direct Transport Costs,Repair Materials,03/10/2019,281284,133.31,Dennis Eagle Ltd
Central Services to the Public,Management & Support Services,Environmental,Transport Related Expenditure,Direct Transport Costs,Repair Materials,03/10/2019,281284,538.59,Dennis Eagle Ltd
Central Services,Corporate & Democratic Core,Corporate & Democratic,Supplies & Services,Services,Professional Advice,03/10/2019,281316,676,Dc Commercial Solicitors
Central Services to the Public,Management & Support Services,Estates and Economic Development ,Third Party Payments,Other Establishments,Private Contractors,31/10/2019,283573,682,Smrs Fabrication & Welding Ltd
External Trading Accounts,Property Investments,Estates and Economic Development ,Supplies & Services,Services,Legal Fees,24/10/2019,283130,825,Hmrc
Central Services to the Public,Management & Support Services,Housing and Environmental Health ,Supplies & Services,Communications & Computing,Computer Hardware,10/10/2019,280205,687.76,Shelton Development Services Ltd
Central Services to the Public,Elections,Legal & Democratic,Supplies & Services,"Printing, Stationery & General Office Expenses",Postage Costs,03/10/2019,281305,689.62,Financial Data Management Plc
Central Services to the Public,Management & Support Services,Estates and Economic Development ,Supplies & Services,Communications & Computing,Telephone Tracking System,10/10/2019,281492,48,Teletrac Navman (Uk) Ltd
Environmental & Regulatory,Regulatory Services,Housing and Environmental Health ,Supplies & Services,Communications & Computing,Telephone Tracking System,10/10/2019,281492,6,Teletrac Navman (Uk) Ltd
Environmental & Regulatory,Regulatory Services,Housing and Environmental Health ,Supplies & Services,Communications & Computing,Telephone Tracking System,10/10/2019,281492,12,Teletrac Navman (Uk) Ltd
Cultural & Related,Open Spaces,Community and Leisure ,Supplies & Services,Communications & Computing,Telephone Tracking System,10/10/2019,281492,6,Teletrac Navman (Uk) Ltd
Cultural & Related,Open Spaces,Community and Leisure ,Supplies & Services,Communications & Computing,Telephone Tracking System,10/10/2019,281492,6,Teletrac Navman (Uk) Ltd
"Highways, Roads & Transport",Parking Services,Plan Pol & Transport,Supplies & Services,Communications & Computing,Telephone Tracking System,10/10/2019,281492,12,Teletrac Navman (Uk) Ltd
Cultural & Related,Open Spaces,Environmental,Supplies & Services,Communications & Computing,Telephone Tracking System,10/10/2019,281492,246,Teletrac Navman (Uk) Ltd
Environmental & Regulatory,Street Cleansing (not chargeable to Highways),Environmental,Supplies & Services,Communications & Computing,Telephone Tracking System,10/10/2019,281492,186.7,Teletrac Navman (Uk) Ltd
Environmental & Regulatory,Waste management,Environmental,Supplies & Services,Communications & Computing,Telephone Tracking System,10/10/2019,281492,138,Teletrac Navman (Uk) Ltd
Environmental & Regulatory,Waste management,Environmental,Supplies & Services,Communications & Computing,Telephone Tracking System,10/10/2019,281492,12,Teletrac Navman (Uk) Ltd
Central Services to the Public,Management & Support Services,Environmental,Supplies & Services,Communications & Computing,Telephone Tracking System,10/10/2019,281492,18,Teletrac Navman (Uk) Ltd
Central Services to the Public,Management & Support Services,Finance,Supplies & Services,"Printing, Stationery & General Office Expenses",Postage Costs,31/10/2019,282633,695.68,Whistl Uk Ltd
Cultural & Related,Open Spaces,Community and Leisure ,Premises related Expenditure,Grounds Maintenance Costs,Non Contract Tree Works,17/10/2019,281587,700,Hrg Tree Services Ltd
Central Services to the Public,Management & Support Services,Revenues,Supplies & Services,Miscellaneous Expenses,Medical Fees,24/10/2019,283098,32,University Hospital Soton Nhs Foundation Trst
Central Services to the Public,Management & Support Services,Estates and Economic Development ,Supplies & Services,Miscellaneous Expenses,Medical Fees,24/10/2019,283098,38,University Hospital Soton Nhs Foundation Trst
Central Services to the Public,Management & Support Services,IT,Supplies & Services,Miscellaneous Expenses,Medical Fees,24/10/2019,283098,19,University Hospital Soton Nhs Foundation Trst
Central Services to the Public,Management & Support Services,IT,Supplies & Services,Miscellaneous Expenses,Medical Fees,24/10/2019,283098,401,University Hospital Soton Nhs Foundation Trst
Cultural & Related,Open Spaces,Environmental,Supplies & Services,Miscellaneous Expenses,Medical Fees,24/10/2019,283098,19,University Hospital Soton Nhs Foundation Trst
Environmental & Regulatory,Waste management,Environmental,Supplies & Services,Miscellaneous Expenses,Medical Fees,24/10/2019,283098,325,University Hospital Soton Nhs Foundation Trst
Environmental & Regulatory,Waste management,Environmental,Supplies & Services,"Clothes, Uniforms & Laundry",Clothing + Uniforms,31/10/2019,283282,712,Golden Orb Solutions
Environmental & Regulatory,Street Cleansing (not chargeable to Highways),Environmental,Employees,Indirect Employee Expenses,Agency Staff - Waged Posts,24/10/2019,282878,499.5,Active Staff Ltd
Environmental & Regulatory,Waste management,Environmental,Employees,Indirect Employee Expenses,Agency Staff - Waged Posts,24/10/2019,282878,101.25,Active Staff Ltd
Environmental & Regulatory,Waste management,Environmental,Employees,Indirect Employee Expenses,Agency Staff - Waged Posts,24/10/2019,282878,121.5,Active Staff Ltd
Environmental & Regulatory,Waste management,Environmental,Transport Related Expenditure,Direct Transport Costs,Repair Materials,31/10/2019,283309,723.17,Terberg Matec Uk Limited
Cultural & Related,Culture & Heritage,Estates and Economic Development ,Premises related Expenditure,Repairs Alterations & Maintenance of Buildings,Building Maint - Non Estates,31/10/2019,283368,724,Alarms & Electrical (Devizes) Ltd
Environmental & Regulatory,Waste management,Environmental,Employees,Indirect Employee Expenses,Agency Staff - Waged Posts,31/10/2019,282528,725.82,Simple Recruitment Services Ltd
Cultural & Related,Open Spaces,Environmental,Transport Related Expenditure,Direct Transport Costs,Repair Materials,24/10/2019,282914,580.69,Exeter Parts Plus
Environmental & Regulatory,Street Cleansing (not chargeable to Highways),Environmental,Transport Related Expenditure,Direct Transport Costs,Repair Materials,24/10/2019,282914,147.12,Exeter Parts Plus
Central Services to the Public,Management & Support Services,Estates and Economic Development ,Third Party Payments,Other Establishments,Private Contractors,17/10/2019,282358,728,Alarms & Electrical (Devizes) Ltd
Environmental & Regulatory,Regulatory Services,Housing and Environmental Health ,Supplies & Services,Grants and subscriptions,Capital Grants,31/10/2019,283690,875,Liftech Systems (Se) Ltd
Cultural & Related,Culture & Heritage,Community and Leisure ,Supplies & Services,Catering,Caf�/ bar consumables,17/10/2019,281282,28.42,Carlsberg Uk Ltd
Cultural & Related,Culture & Heritage,Community and Leisure ,Supplies & Services,Catering,Non-Contract Catering,17/10/2019,281282,703.51,Carlsberg Uk Ltd
Central Services to the Public,Management & Support Services,Estates and Economic Development ,Third Party Payments,Other Establishments,Private Contractors,31/10/2019,283586,738,Smrs Fabrication & Welding Ltd
Environmental & Regulatory,Waste management,Environmental,Employees,Indirect Employee Expenses,Agency Staff - Waged Posts,17/10/2019,282625,738.7,Golden Orb Solutions
Environmental & Regulatory,Regulatory Services,Housing and Environmental Health ,Supplies & Services,"Equipment, Furniture & Materials",Purchase Equip + Materials,31/10/2019,282368,740.9,Socotec Uk Ltd
Central Services to the Public,Management & Support Services,IT,Supplies & Services,"Equipment, Furniture & Materials",Maintenance Equip + Materials,31/10/2019,278455,741.67,Quadrant Security Group Ltd
Central Services to the Public,Management & Support Services,IT,Supplies & Services,"Equipment, Furniture & Materials",Maintenance Equip + Materials,31/10/2019,279706,741.67,Quadrant Security Group Ltd
Central Services to the Public,Management & Support Services,IT,Supplies & Services,"Equipment, Furniture & Materials",Maintenance Equip + Materials,31/10/2019,282897,741.67,Quadrant Security Group Ltd
Environmental & Regulatory,Regulatory Services,Housing and Environmental Health ,Supplies & Services,Grants and subscriptions,Capital Grants,10/10/2019,282163,891.23,Pm Design
"Highways, Roads & Transport",Parking Services,Plan Pol & Transport,Premises related Expenditure,Repairs Alterations & Maintenance of Buildings,Car Park General Repairs,31/10/2019,283583,744,Externiture Ltd
Central Services to the Public,Elections,Legal & Democratic,Premises related Expenditure,Rents,Premises Hire,24/10/2019,283113,900,Ultimate Floor Sanding
Cultural & Related,Open Spaces,Community and Leisure ,Supplies & Services,"Equipment, Furniture & Materials",Purchase Equip + Materials,17/10/2019,280810,750,Lubbe & Sons Ltd
Cultural & Related,Open Spaces,Community and Leisure ,Supplies & Services,Services,Legal Fees,17/10/2019,281351,750,Enforcement Bailiffs Ltd
Central Services,Corporate & Democratic Core,Corporate & Democratic,Supplies & Services,Services,Professional Advice,17/10/2019,281837,750,Dc Commercial Solicitors
"Highways, Roads & Transport",Highways and roads - maintenance,Plan Pol & Transport,Premises related Expenditure,Repairs Alterations & Maintenance of Buildings,General Repairs,17/10/2019,282619,751.9,Externiture Ltd
Environmental & Regulatory,Waste management,Environmental,Employees,Indirect Employee Expenses,Agency Staff - Waged Posts,03/10/2019,281603,752.05,Golden Orb Solutions
Environmental & Regulatory,Waste management,Environmental,Employees,Indirect Employee Expenses,Agency Staff - Waged Posts,10/10/2019,281919,752.05,Golden Orb Solutions
Central Services to the Public,Management & Support Services,Community and Leisure ,Supplies & Services,Communications & Computing,Computer Hardware,31/10/2019,283286,759.84,Tet Ltd
Environmental & Regulatory,Street Cleansing (not chargeable to Highways),Environmental,Transport Related Expenditure,Direct Transport Costs,Tyres,31/10/2019,282937,637.48,Tructyre Ats
Environmental & Regulatory,Waste management,Environmental,Transport Related Expenditure,Direct Transport Costs,Tyres,31/10/2019,282937,125.12,Tructyre Ats
Cultural & Related,Open Spaces,Environmental,Transport Related Expenditure,Direct Transport Costs,Repair Materials,24/10/2019,282870,777.47,Kgm Ltd
Central Services to the Public,Local Tax Collection,Revenues,Supplies & Services,"Printing, Stationery & General Office Expenses",Postage Costs,03/10/2019,281493,36.38,Royal Mail Group Ltd
Central Services to the Public,Local Tax Collection,Revenues,Supplies & Services,"Printing, Stationery & General Office Expenses",Postage Costs,03/10/2019,281493,661.73,Royal Mail Group Ltd
Housing Services,Housing Benefits ,Revenues,Supplies & Services,"Printing, Stationery & General Office Expenses",Postage Costs,03/10/2019,281493,43.42,Royal Mail Group Ltd
Central Services to the Public,Local Tax Collection,Revenues,Supplies & Services,"Printing, Stationery & General Office Expenses",Postage Costs,03/10/2019,281493,43.42,Royal Mail Group Ltd
Central Services to the Public,Management & Support Services,Estates and Economic Development ,Supplies & Services,Miscellaneous Expenses,Medical Fees,24/10/2019,283095,19,University Hospital Soton Nhs Foundation Trst
Central Services to the Public,Management & Support Services,Estates and Economic Development ,Supplies & Services,Miscellaneous Expenses,Medical Fees,24/10/2019,283095,312,University Hospital Soton Nhs Foundation Trst
Housing Services,Homelessness,Housing and Environmental Health ,Supplies & Services,Miscellaneous Expenses,Medical Fees,24/10/2019,283095,32,University Hospital Soton Nhs Foundation Trst
Cultural & Related,Culture & Heritage,Community and Leisure ,Supplies & Services,Miscellaneous Expenses,Medical Fees,24/10/2019,283095,233,University Hospital Soton Nhs Foundation Trst
Planning & Development,Development Control,Planning & Building,Supplies & Services,Miscellaneous Expenses,Medical Fees,24/10/2019,283095,51,University Hospital Soton Nhs Foundation Trst
Cultural & Related,Open Spaces,Environmental,Supplies & Services,Miscellaneous Expenses,Medical Fees,24/10/2019,283095,252,University Hospital Soton Nhs Foundation Trst
Environmental & Regulatory,Waste management,Environmental,Supplies & Services,Miscellaneous Expenses,Medical Fees,24/10/2019,283095,19,University Hospital Soton Nhs Foundation Trst
Environmental & Regulatory,Street Cleansing (not chargeable to Highways),Environmental,Employees,Indirect Employee Expenses,Agency Staff - Waged Posts,17/10/2019,282609,499.5,Active Staff Ltd
Environmental & Regulatory,Waste management,Environmental,Employees,Indirect Employee Expenses,Agency Staff - Waged Posts,17/10/2019,282609,290.25,Active Staff Ltd
Central Services to the Public,Management & Support Services,IT,Supplies & Services,Communications & Computing,Computer Hardware,31/10/2019,283679,155.3,Pc World Business
Central Services to the Public,Management & Support Services,IT,Supplies & Services,Communications & Computing,Computer Hardware,31/10/2019,283679,661.49,Pc World Business
Central Services to the Public,Elections,Legal & Democratic,Supplies & Services,"Printing, Stationery & General Office Expenses",Postage Costs,31/10/2019,283059,819.24,Royal Mail Group Ltd
Environmental & Regulatory,Waste management,Environmental,Employees,Indirect Employee Expenses,Agency Staff - Waged Posts,31/10/2019,282880,832.15,Golden Orb Solutions
Environmental & Regulatory,Waste management,Environmental,Supplies & Services,"Equipment, Furniture & Materials",Purchase Equip + Materials,03/10/2019,281278,832.15,Golden Orb Solutions
Planning & Development,Community Development,Community and Leisure ,Supplies & Services,Grants & Subscriptions,Grants,23/10/2019,283054,1000,Andover Nepalese Community
Planning & Development,Community Development,Community and Leisure ,Supplies & Services,Grants & Subscriptions,Grants,30/10/2019,283565,1000,St Paul'S Church & Community Centre
Environmental & Regulatory,Climate Change costs,Plan Pol & Transport,Supplies & Services,Services,Project Consultancy - Policy,24/10/2019,283106,1000,Hampshire & Iow Wildlife Trust
Central Services to the Public,Management & Support Services,HR Services,Supplies & Services,Services,External Training Consultants,31/10/2019,281453,1000,Winchester City Council
"Highways, Roads & Transport",Parking Services,Plan Pol & Transport,Supplies & Services,Services,Legal Fees,03/10/2019,281653,1000,Hmcs
Environmental & Regulatory,Waste management,Environmental,Employees,Indirect Employee Expenses,Agency Staff - Waged Posts,03/10/2019,281275,845.5,Golden Orb Solutions
Central Services to the Public,Management & Support Services,Environmental,Employees,Indirect Employee Expenses,Agency Staff - Waged Posts,03/10/2019,281582,848.04,Proactive Personnel Ltd
Central Services to the Public,Management & Support Services,Environmental,Employees,Indirect Employee Expenses,Agency Staff - Waged Posts,17/10/2019,282036,848.04,Proactive Personnel Ltd
Environmental & Regulatory,Waste management,Environmental,Transport Related Expenditure,Direct Transport Costs,Repair Materials,24/10/2019,282938,849.89,Dennis Eagle Ltd
Cultural & Related,Open Spaces,Community and Leisure ,Premises related Expenditure,Grounds Maintenance Costs,Gm - Additional Works,10/10/2019,281254,865,Kingcombe Aquacare Ltd
Cultural & Related,Culture & Heritage,Community and Leisure ,Third Party Payments,Private contractors,Main Contractor Costs,24/10/2019,282893,870,The Institute Of Groundsmanship
Central Services to the Public,Management & Support Services,Environmental,Transport Related Expenditure,Direct Transport Costs,Repair Materials,24/10/2019,282151,871.9,Terberg Matec Uk Limited
Environmental & Regulatory,Street Cleansing (not chargeable to Highways),Environmental,Transport Related Expenditure,Direct Transport Costs,External Garages,31/10/2019,283550,259.55,Tennant Uk Cleaning Solutions Ltd
Environmental & Regulatory,Street Cleansing (not chargeable to Highways),Environmental,Transport Related Expenditure,Direct Transport Costs,Repair Materials,31/10/2019,283550,614.23,Tennant Uk Cleaning Solutions Ltd
Planning & Development,Development Control,Planning & Building,Supplies & Services,"Printing, Stationery & General Office Expenses",Photocopying Costs,10/10/2019,281292,889.57,Ricoh Uk Ltd
Environmental & Regulatory,Waste management,Environmental,Employees,Indirect Employee Expenses,Agency Staff - Waged Posts,03/10/2019,279698,894.73,Simple Recruitment Services Ltd
Central Services to the Public,Management & Support Services,Chief Executive's,Employees,Indirect Employee Expenses,Advertising Of Vacancies,24/10/2019,282634,900,Guardian News & Media Ltd
Environmental & Regulatory,Regulatory Services,Estates and Economic Development ,Premises related Expenditure,Water Services,Water And Sewerage Charges,24/10/2019,282950,1081.34,Castle Water Limited
Central Services to the Public,Management & Support Services,IT,Supplies & Services,Communications & Computing,Land Line Telephone Charges,24/10/2019,282862,901.29,Virgin Media Payments Ltd
Environmental & Regulatory,Regulatory Services,Estates and Economic Development ,Premises related Expenditure,Water Services,Water And Sewerage Charges,03/10/2019,281484,1117.38,Castle Water Limited
Central Services to the Public,Management & Support Services,Environmental,Transport Related Expenditure,Direct Transport Costs,Workshop Consumables,24/10/2019,282083,139.41,Md Services (Andover) Ltd
Central Services to the Public,Management & Support Services,Environmental,Transport Related Expenditure,Direct Transport Costs,Repair Materials,24/10/2019,282083,681.41,Md Services (Andover) Ltd
Central Services to the Public,Management & Support Services,Environmental,Supplies & Services,"Equipment, Furniture & Materials",Purchase Tools,24/10/2019,282083,113.63,Md Services (Andover) Ltd
Environmental & Regulatory,Street Cleansing (not chargeable to Highways),Environmental,Supplies & Services,"Equipment, Furniture & Materials",Purchase Equip + Materials,03/10/2019,280248,934.9,Graffiti Removal Ltd
Central Services to the Public,Management & Support Services,IT,Supplies & Services,Communications & Computing,Computer Hardware,24/10/2019,282874,935,Virtual Effect Ltd
"Highways, Roads & Transport",Parking Services,Plan Pol & Transport,Premises related Expenditure,Repairs Alterations & Maintenance of Buildings,Car Park General Repairs,17/10/2019,281939,942.29,Coupe Line
Cultural & Related,Culture & Heritage,Community and Leisure ,Third Party Payments,Private contractors,Main Contractor Costs,17/10/2019,282361,950,Real Estate Strategies Ltd
Central Services to the Public,Management & Support Services,IT,Supplies & Services,Communications & Computing,Computer Software,03/10/2019,280803,950,Richmond Systems
Central Services to the Public,Management & Support Services,IT,Supplies & Services,Communications & Computing,Land Line Telephone Charges,03/10/2019,281318,955.85,Virgin Media Payments Ltd
Environmental & Regulatory,Waste management,Environmental,Employees,Indirect Employee Expenses,Agency Staff - Waged Posts,03/10/2019,281277,961.2,Golden Orb Solutions
Central Services to the Public,Management & Support Services,Estates and Economic Development ,Premises related Expenditure,Repairs Alterations & Maintenance of Buildings,Estates premises costs - AMP,31/10/2019,283568,975,Prosigns (Uk)
Housing Services,Homelessness,Housing and Environmental Health ,Supplies & Services,Grants & Subscriptions,Grants,24/10/2019,283117,1180,Northwood
Cultural & Related,Recreation & Sport,Community and Leisure ,Premises related Expenditure,Repairs Alterations & Maintenance of Buildings,Building Maint - Non Estates,31/10/2019,283273,988,Alarms & Electrical (Devizes) Ltd
Cultural & Related,Open Spaces,Environmental,Supplies & Services,Grants & Subscriptions,Subscriptions,31/10/2019,283580,990,Mallard Consultancy Ltd
Environmental & Regulatory,Waste management,Environmental,Employees,Indirect Employee Expenses,Agency Staff - Waged Posts,03/10/2019,281241,750.33,Active Staff Ltd
Environmental & Regulatory,Waste management,Environmental,Employees,Indirect Employee Expenses,Agency Staff - Waged Posts,03/10/2019,281241,247.05,Active Staff Ltd
Central Services to the Public,Management & Support Services,Chief Executive's,Supplies & Services,Communications & Computing,Hardware Maintenance,24/10/2019,282535,1043.36,Tet Ltd
Cultural & Related,Open Spaces,Community and Leisure ,Premises related Expenditure,Repairs Alterations & Maintenance of Buildings,Estates premises costs - AMP,17/10/2019,280203,1050,Hrg Tree Services Ltd
Environmental & Regulatory,Waste management,Environmental,Transport Related Expenditure,Direct Transport Costs,Repair Materials,31/10/2019,283034,1053.1,Terberg Matec Uk Limited
Central Services,Corporate & Democratic Core,Corporate & Democratic,Supplies & Services,Miscellaneous Expenses,Design Fees,17/10/2019,282382,1073,Cammegh Davies Fleming
Planning & Development,Community Development,Community and Leisure ,Supplies & Services,Grants & Subscriptions,Grants,31/10/2019,283694,1317.35,Wellow Village Hall
Cultural & Related,Open Spaces,Environmental,Third Party Payments,Other Establishments,Private Contractors,24/10/2019,282879,1317.93,Ivan Gibson Agricultural Contractor
Central Services to the Public,Elections,Legal & Democratic,Supplies & Services,"Printing, Stationery & General Office Expenses",Written Media,03/10/2019,281307,1319,Wildy & Sons Ltd
Central Services to the Public,Management & Support Services,Legal & Democratic,Supplies & Services,Miscellaneous Expenses,Medical Fees,24/10/2019,283096,19,University Hospital Soton Nhs Foundation Trst
Central Services to the Public,Elections,Legal & Democratic,Supplies & Services,Miscellaneous Expenses,Medical Fees,24/10/2019,283096,19,University Hospital Soton Nhs Foundation Trst
Central Services to the Public,Management & Support Services,Chief Executive's,Supplies & Services,Miscellaneous Expenses,Medical Fees,24/10/2019,283096,92,University Hospital Soton Nhs Foundation Trst
Central Services to the Public,Management & Support Services,Estates and Economic Development ,Supplies & Services,Miscellaneous Expenses,Medical Fees,24/10/2019,283096,19,University Hospital Soton Nhs Foundation Trst
Central Services to the Public,Management & Support Services,Estates and Economic Development ,Supplies & Services,Miscellaneous Expenses,Medical Fees,24/10/2019,283096,331,University Hospital Soton Nhs Foundation Trst
Environmental & Regulatory,Regulatory Services,Housing and Environmental Health ,Supplies & Services,Miscellaneous Expenses,Medical Fees,24/10/2019,283096,92,University Hospital Soton Nhs Foundation Trst
Housing Services,Homelessness,Housing and Environmental Health ,Supplies & Services,Miscellaneous Expenses,Medical Fees,24/10/2019,283096,38,University Hospital Soton Nhs Foundation Trst
Central Services to the Public,Management & Support Services,IT,Supplies & Services,Miscellaneous Expenses,Medical Fees,24/10/2019,283096,19,University Hospital Soton Nhs Foundation Trst
Planning & Development,Development Control,Planning & Building,Supplies & Services,Miscellaneous Expenses,Medical Fees,24/10/2019,283096,222,University Hospital Soton Nhs Foundation Trst
Central Services to the Public,Management & Support Services,Revenues,Supplies & Services,Miscellaneous Expenses,Medical Fees,24/10/2019,283096,19,University Hospital Soton Nhs Foundation Trst
"Highways, Roads & Transport",Parking Services,Plan Pol & Transport,Supplies & Services,Miscellaneous Expenses,Medical Fees,24/10/2019,283096,167,University Hospital Soton Nhs Foundation Trst
Environmental & Regulatory,Street Cleansing (not chargeable to Highways),Environmental,Supplies & Services,Miscellaneous Expenses,Medical Fees,24/10/2019,283096,92,University Hospital Soton Nhs Foundation Trst
Environmental & Regulatory,Waste management,Environmental,Supplies & Services,Miscellaneous Expenses,Medical Fees,24/10/2019,283096,167,University Hospital Soton Nhs Foundation Trst
Cultural & Related,Culture & Heritage,Community and Leisure ,Supplies & Services,Catering,Non-Contract Catering,31/10/2019,282560,1113.85,Carlsberg Uk Ltd
Central Services to the Public,Management & Support Services,Estates and Economic Development ,Third Party Payments,Other Establishments,Private Contractors,24/10/2019,282612,1151,Purbeck Civil Engineering Limited
Environmental & Regulatory,Street Cleansing (not chargeable to Highways),Environmental,Transport Related Expenditure,Direct Transport Costs,External Garages,31/10/2019,283349,192.6,Tennant Uk Cleaning Solutions Ltd
Environmental & Regulatory,Street Cleansing (not chargeable to Highways),Environmental,Transport Related Expenditure,Direct Transport Costs,Repair Materials,31/10/2019,283349,963.73,Tennant Uk Cleaning Solutions Ltd
Environmental & Regulatory,Regulatory Services,Housing and Environmental Health ,Supplies & Services,Grants and subscriptions,Capital Grants,31/10/2019,283691,1443.78,Bartram Building Maintenance Services
Central Services to the Public,Management & Support Services,Finance,Supplies & Services,"Printing, Stationery & General Office Expenses",Postage Costs,31/10/2019,283030,1220.23,Whistl Uk Ltd
"Highways, Roads & Transport",Highways and roads - maintenance,Plan Pol & Transport,Premises related Expenditure,Repairs Alterations & Maintenance of Buildings,Highways Repairs,31/10/2019,283301,1225,Clifton Ingram Llp
Central Services to the Public,Management & Support Services,Finance,Supplies & Services,Services,Training Courses,10/10/2019,281942,1250,Cipfa
Environmental & Regulatory,Waste management,Environmental,Transport Related Expenditure,Direct Transport Costs,Tyres,31/10/2019,283032,1256.11,Tructyre Ats
Central Services,Corporate & Democratic Core,Corporate & Democratic,Supplies & Services,Services,Professional Advice,10/10/2019,281494,1267.5,Dc Commercial Solicitors
Environmental & Regulatory,Waste management,Environmental,Employees,Indirect Employee Expenses,Agency Staff - Waged Posts,31/10/2019,283379,1272.43,24-7 Staffing
Central Services to the Public,Management & Support Services,HR Services,Supplies & Services,Services,Training Courses,10/10/2019,281446,1295,Yellowday Training Ltd
Central Services to the Public,Management & Support Services,Estates and Economic Development ,Third Party Payments,Private contractors,Main Contractor Costs,24/10/2019,282622,1300,Ministry Of Play Ltd
Environmental & Regulatory,Waste management,Environmental,Employees,Indirect Employee Expenses,Agency Staff - Waged Posts,03/10/2019,281621,1302.8,24-7 Staffing
Environmental & Regulatory,Regulatory Services,Housing and Environmental Health ,Supplies & Services,Grants and subscriptions,Capital Grants,17/10/2019,282653,1569,Andover Glass Works Ltd
Cultural & Related,Culture & Heritage,Community and Leisure ,Premises related Expenditure,Energy Costs,Electricity,10/10/2019,282042,1037.81,Sparsholt College Hampshire
Cultural & Related,Culture & Heritage,Community and Leisure ,Premises related Expenditure,Energy Costs,Gas,10/10/2019,282042,58.08,Sparsholt College Hampshire
Cultural & Related,Culture & Heritage,Community and Leisure ,Premises related Expenditure,Water Services,Water And Sewerage Charges,10/10/2019,282042,254.34,Sparsholt College Hampshire
Planning & Development,Planning Policy,Plan Pol & Transport,Supplies & Services,Grants & Subscriptions,Grants,10/10/2019,278411,1571.96,Hampshire County Council
Cultural & Related,Open Spaces,Community and Leisure ,Third Party Payments,Private contractors,Main Contractor Costs,03/10/2019,280258,1311,Streetmaster (South Wales) Ltd
Central Services to the Public,Management & Support Services,Estates and Economic Development ,Third Party Payments,Other Establishments,Contract Catering,17/10/2019,281949,1335.8,Edwards And Ward Ltd
Environmental & Regulatory,Street Cleansing (not chargeable to Highways),Environmental,Supplies & Services,"Equipment, Furniture & Materials",Maintenance Equip + Materials,17/10/2019,281236,1357.2,Imperial Polythene Products Ltd
Environmental & Regulatory,Regulatory Services,Housing and Environmental Health ,Supplies & Services,Grants and subscriptions,Capital Grants,24/10/2019,283129,1637.72,Hampshire Mobility Services
Central Services to the Public,Management & Support Services,Estates and Economic Development ,Third Party Payments,Private contractors,Main Contractor Costs,24/10/2019,282830,1380.25,Ministry Of Play Ltd
Central Services to the Public,Management & Support Services,Estates and Economic Development ,Third Party Payments,Private contractors,Main Contractor Costs,24/10/2019,282831,1380.25,Ministry Of Play Ltd
Environmental & Regulatory,Waste management,Environmental,Transport Related Expenditure,Direct Transport Costs,Repair Materials,31/10/2019,283333,364.33,Dennis Eagle Ltd
Central Services to the Public,Management & Support Services,Environmental,Transport Related Expenditure,Direct Transport Costs,Repair Materials,31/10/2019,283333,1019.38,Dennis Eagle Ltd
Environmental & Regulatory,Regulatory Services,Estates and Economic Development ,Premises related Expenditure,Water Services,Water And Sewerage Charges,31/10/2019,281489,1670.58,Business Stream
Environmental & Regulatory,Waste management,Environmental,Transport Related Expenditure,Direct Transport Costs,Repair Materials,03/10/2019,279720,1406.13,Dennis Eagle Ltd
External Trading Accounts,Property Investments,Estates and Economic Development ,Premises related Expenditure,Repairs Alterations & Maintenance of Buildings,Building Maint - Non Estates,03/10/2019,281270,400,Healthy Buildings International
External Trading Accounts,Business Parks,Estates and Economic Development ,Premises related Expenditure,Repairs Alterations & Maintenance of Buildings,Building Maint - Non Estates,03/10/2019,281270,150,Healthy Buildings International
Cultural & Related,Culture & Heritage,Estates and Economic Development ,Premises related Expenditure,Repairs Alterations & Maintenance of Buildings,Building Maint - Non Estates,03/10/2019,281270,150,Healthy Buildings International
Central Services to the Public,Management & Support Services,Estates and Economic Development ,Premises related Expenditure,Repairs Alterations & Maintenance of Buildings,Building Maint - Non Estates,03/10/2019,281270,150,Healthy Buildings International
Environmental & Regulatory,"Cemetery, Cremation and Mortuary Services",Community and Leisure ,Premises related Expenditure,Repairs Alterations & Maintenance of Buildings,Building Maint - Non Estates,03/10/2019,281270,400,Healthy Buildings International
"Highways, Roads & Transport",Parking Services,Plan Pol & Transport,Premises related Expenditure,Repairs Alterations & Maintenance of Buildings,Building Maint - Non Estates,03/10/2019,281270,180,Healthy Buildings International
External Trading Accounts,Business Parks,Estates and Economic Development ,Premises related Expenditure,Repairs Alterations & Maintenance of Buildings,Planned Maintenance - Non Est,31/10/2019,283344,47.79,Healthy Buildings International
External Trading Accounts,Business Parks,Estates and Economic Development ,Premises related Expenditure,Repairs Alterations & Maintenance of Buildings,Planned Maintenance - Non Est,31/10/2019,283344,143.33,Healthy Buildings International
Cultural & Related,Culture & Heritage,Estates and Economic Development ,Premises related Expenditure,Repairs Alterations & Maintenance of Buildings,Planned Maintenance - Non Est,31/10/2019,283344,47.78,Healthy Buildings International
Cultural & Related,Culture & Heritage,Estates and Economic Development ,Premises related Expenditure,Repairs Alterations & Maintenance of Buildings,Planned Maintenance - Non Est,31/10/2019,283344,47.79,Healthy Buildings International
Cultural & Related,Culture & Heritage,Estates and Economic Development ,Premises related Expenditure,Repairs Alterations & Maintenance of Buildings,Planned Maintenance - Non Est,31/10/2019,283344,47.79,Healthy Buildings International
Cultural & Related,Culture & Heritage,Estates and Economic Development ,Premises related Expenditure,Repairs Alterations & Maintenance of Buildings,Planned Maintenance - Non Est,31/10/2019,283344,47.79,Healthy Buildings International
Cultural & Related,Culture & Heritage,Estates and Economic Development ,Premises related Expenditure,Repairs Alterations & Maintenance of Buildings,Planned Maintenance - Non Est,31/10/2019,283344,47.79,Healthy Buildings International
Cultural & Related,Culture & Heritage,Estates and Economic Development ,Premises related Expenditure,Repairs Alterations & Maintenance of Buildings,Planned Maintenance - Non Est,31/10/2019,283344,47.79,Healthy Buildings International
Cultural & Related,Culture & Heritage,Estates and Economic Development ,Premises related Expenditure,Repairs Alterations & Maintenance of Buildings,Planned Maintenance - Non Est,31/10/2019,283344,47.79,Healthy Buildings International
Central Services to the Public,Management & Support Services,Estates and Economic Development ,Premises related Expenditure,Repairs Alterations & Maintenance of Buildings,Planned Maintenance - Non Est,31/10/2019,283344,47.78,Healthy Buildings International
Central Services to the Public,Management & Support Services,Estates and Economic Development ,Premises related Expenditure,Repairs Alterations & Maintenance of Buildings,Planned Maintenance - Non Est,31/10/2019,283344,47.79,Healthy Buildings International
Central Services to the Public,Management & Support Services,Estates and Economic Development ,Premises related Expenditure,Repairs Alterations & Maintenance of Buildings,Planned Maintenance - Non Est,31/10/2019,283344,47.78,Healthy Buildings International
Central Services to the Public,Management & Support Services,Estates and Economic Development ,Premises related Expenditure,Repairs Alterations & Maintenance of Buildings,Planned Maintenance - Non Est,31/10/2019,283344,47.79,Healthy Buildings International
Environmental & Regulatory,Regulatory Services,Estates and Economic Development ,Premises related Expenditure,Repairs Alterations & Maintenance of Buildings,Planned Maintenance - Non Est,31/10/2019,283344,95.57,Healthy Buildings International
Cultural & Related,Recreation & Sport,Community and Leisure ,Premises related Expenditure,Repairs Alterations & Maintenance of Buildings,Planned Maintenance - Non Est,31/10/2019,283344,47.79,Healthy Buildings International
Cultural & Related,Recreation & Sport,Community and Leisure ,Premises related Expenditure,Repairs Alterations & Maintenance of Buildings,Planned Maintenance - Non Est,31/10/2019,283344,47.76,Healthy Buildings International
Cultural & Related,Recreation & Sport,Community and Leisure ,Premises related Expenditure,Repairs Alterations & Maintenance of Buildings,Planned Maintenance - Non Est,31/10/2019,283344,47.79,Healthy Buildings International
Cultural & Related,Recreation & Sport,Community and Leisure ,Premises related Expenditure,Repairs Alterations & Maintenance of Buildings,Planned Maintenance - Non Est,31/10/2019,283344,47.78,Healthy Buildings International
Cultural & Related,Recreation & Sport,Community and Leisure ,Premises related Expenditure,Repairs Alterations & Maintenance of Buildings,Planned Maintenance - Non Est,31/10/2019,283344,47.79,Healthy Buildings International
Cultural & Related,Recreation & Sport,Community and Leisure ,Premises related Expenditure,Repairs Alterations & Maintenance of Buildings,Planned Maintenance - Non Est,31/10/2019,283344,47.79,Healthy Buildings International
Cultural & Related,Recreation & Sport,Community and Leisure ,Premises related Expenditure,Repairs Alterations & Maintenance of Buildings,Planned Maintenance - Non Est,31/10/2019,283344,47.79,Healthy Buildings International
Environmental & Regulatory,"Cemetery, Cremation and Mortuary Services",Community and Leisure ,Premises related Expenditure,Repairs Alterations & Maintenance of Buildings,Planned Maintenance - Non Est,31/10/2019,283344,47.78,Healthy Buildings International
Environmental & Regulatory,"Cemetery, Cremation and Mortuary Services",Community and Leisure ,Premises related Expenditure,Repairs Alterations & Maintenance of Buildings,Planned Maintenance - Non Est,31/10/2019,283344,47.78,Healthy Buildings International
Cultural & Related,Open Spaces,Community and Leisure ,Premises related Expenditure,Repairs Alterations & Maintenance of Buildings,Planned Maintenance - Non Est,31/10/2019,283344,47.79,Healthy Buildings International
Cultural & Related,Culture & Heritage,Community and Leisure ,Premises related Expenditure,Repairs Alterations & Maintenance of Buildings,Planned Maintenance - Non Est,31/10/2019,283344,47.79,Healthy Buildings International
"Highways, Roads & Transport",Parking Services,Plan Pol & Transport,Premises related Expenditure,Repairs Alterations & Maintenance of Buildings,Planned Maintenance - Non Est,31/10/2019,283344,95.57,Healthy Buildings International
Central Services to the Public,Management & Support Services,HR Services,Supplies & Services,Services,External Training Consultants,31/10/2019,283385,1440,Goodsense Training
Cultural & Related,Culture & Heritage,Community and Leisure ,Supplies & Services,Miscellaneous Expenses,Booking Of Acts,24/10/2019,283036,1440.54,The Pantaloons
"Highways, Roads & Transport",Highways and roads - maintenance,Plan Pol & Transport,Third Party Payments,Private contractors,Main Contractor Costs,03/10/2019,281441,1450,J Poore Lighting Design
Cultural & Related,Culture & Heritage,Community and Leisure ,Supplies & Services,Miscellaneous Expenses,Booking Of Acts,31/10/2019,282556,1769.34,The Ub40 Experience
External Trading Accounts,Business Parks,Estates and Economic Development ,Premises related Expenditure,Repairs Alterations & Maintenance of Buildings,Planned Maintenance - Non Est,31/10/2019,283060,47.79,Healthy Buildings International
External Trading Accounts,Business Parks,Estates and Economic Development ,Premises related Expenditure,Repairs Alterations & Maintenance of Buildings,Planned Maintenance - Non Est,31/10/2019,283060,143.34,Healthy Buildings International
Cultural & Related,Culture & Heritage,Estates and Economic Development ,Premises related Expenditure,Repairs Alterations & Maintenance of Buildings,Planned Maintenance - Non Est,31/10/2019,283060,47.78,Healthy Buildings International
Cultural & Related,Culture & Heritage,Estates and Economic Development ,Premises related Expenditure,Repairs Alterations & Maintenance of Buildings,Planned Maintenance - Non Est,31/10/2019,283060,47.79,Healthy Buildings International
Cultural & Related,Culture & Heritage,Estates and Economic Development ,Premises related Expenditure,Repairs Alterations & Maintenance of Buildings,Planned Maintenance - Non Est,31/10/2019,283060,47.79,Healthy Buildings International
Cultural & Related,Culture & Heritage,Estates and Economic Development ,Premises related Expenditure,Repairs Alterations & Maintenance of Buildings,Planned Maintenance - Non Est,31/10/2019,283060,47.79,Healthy Buildings International
Cultural & Related,Culture & Heritage,Estates and Economic Development ,Premises related Expenditure,Repairs Alterations & Maintenance of Buildings,Planned Maintenance - Non Est,31/10/2019,283060,47.79,Healthy Buildings International
Cultural & Related,Culture & Heritage,Estates and Economic Development ,Premises related Expenditure,Repairs Alterations & Maintenance of Buildings,Planned Maintenance - Non Est,31/10/2019,283060,47.79,Healthy Buildings International
Cultural & Related,Culture & Heritage,Estates and Economic Development ,Premises related Expenditure,Repairs Alterations & Maintenance of Buildings,Planned Maintenance - Non Est,31/10/2019,283060,47.79,Healthy Buildings International
Central Services to the Public,Management & Support Services,Estates and Economic Development ,Premises related Expenditure,Repairs Alterations & Maintenance of Buildings,Planned Maintenance - Non Est,31/10/2019,283060,47.78,Healthy Buildings International
Central Services to the Public,Management & Support Services,Estates and Economic Development ,Premises related Expenditure,Repairs Alterations & Maintenance of Buildings,Planned Maintenance - Non Est,31/10/2019,283060,47.79,Healthy Buildings International
Central Services to the Public,Management & Support Services,Estates and Economic Development ,Premises related Expenditure,Repairs Alterations & Maintenance of Buildings,Planned Maintenance - Non Est,31/10/2019,283060,47.78,Healthy Buildings International
Central Services to the Public,Management & Support Services,Estates and Economic Development ,Premises related Expenditure,Repairs Alterations & Maintenance of Buildings,Planned Maintenance - Non Est,31/10/2019,283060,47.79,Healthy Buildings International
Environmental & Regulatory,Regulatory Services,Estates and Economic Development ,Premises related Expenditure,Repairs Alterations & Maintenance of Buildings,Planned Maintenance - Non Est,31/10/2019,283060,95.57,Healthy Buildings International
Cultural & Related,Recreation & Sport,Community and Leisure ,Premises related Expenditure,Repairs Alterations & Maintenance of Buildings,Planned Maintenance - Non Est,31/10/2019,283060,53.44,Healthy Buildings International
Cultural & Related,Recreation & Sport,Community and Leisure ,Premises related Expenditure,Repairs Alterations & Maintenance of Buildings,Planned Maintenance - Non Est,31/10/2019,283060,47.79,Healthy Buildings International
Cultural & Related,Recreation & Sport,Community and Leisure ,Premises related Expenditure,Repairs Alterations & Maintenance of Buildings,Planned Maintenance - Non Est,31/10/2019,283060,47.76,Healthy Buildings International
Cultural & Related,Recreation & Sport,Community and Leisure ,Premises related Expenditure,Repairs Alterations & Maintenance of Buildings,Planned Maintenance - Non Est,31/10/2019,283060,47.79,Healthy Buildings International
Cultural & Related,Recreation & Sport,Community and Leisure ,Premises related Expenditure,Repairs Alterations & Maintenance of Buildings,Planned Maintenance - Non Est,31/10/2019,283060,47.78,Healthy Buildings International
Cultural & Related,Recreation & Sport,Community and Leisure ,Premises related Expenditure,Repairs Alterations & Maintenance of Buildings,Planned Maintenance - Non Est,31/10/2019,283060,47.79,Healthy Buildings International
Cultural & Related,Recreation & Sport,Community and Leisure ,Premises related Expenditure,Repairs Alterations & Maintenance of Buildings,Planned Maintenance - Non Est,31/10/2019,283060,47.79,Healthy Buildings International
Cultural & Related,Recreation & Sport,Community and Leisure ,Premises related Expenditure,Repairs Alterations & Maintenance of Buildings,Planned Maintenance - Non Est,31/10/2019,283060,47.79,Healthy Buildings International
Environmental & Regulatory,"Cemetery, Cremation and Mortuary Services",Community and Leisure ,Premises related Expenditure,Repairs Alterations & Maintenance of Buildings,Planned Maintenance - Non Est,31/10/2019,283060,47.78,Healthy Buildings International
Environmental & Regulatory,"Cemetery, Cremation and Mortuary Services",Community and Leisure ,Premises related Expenditure,Repairs Alterations & Maintenance of Buildings,Planned Maintenance - Non Est,31/10/2019,283060,47.78,Healthy Buildings International
Cultural & Related,Open Spaces,Community and Leisure ,Premises related Expenditure,Repairs Alterations & Maintenance of Buildings,Planned Maintenance - Non Est,31/10/2019,283060,47.79,Healthy Buildings International
Cultural & Related,Culture & Heritage,Community and Leisure ,Premises related Expenditure,Repairs Alterations & Maintenance of Buildings,Planned Maintenance - Non Est,31/10/2019,283060,47.79,Healthy Buildings International
"Highways, Roads & Transport",Parking Services,Plan Pol & Transport,Premises related Expenditure,Repairs Alterations & Maintenance of Buildings,Planned Maintenance - Non Est,31/10/2019,283060,95.57,Healthy Buildings International
External Trading Accounts,Business Parks,Estates and Economic Development ,Supplies & Services,Services,Professional Fees,10/10/2019,281821,1500,Smith Price Llp
External Trading Accounts,Business Parks,Estates and Economic Development ,Supplies & Services,Services,Professional Fees,10/10/2019,281824,1500,Smith Price Llp
External Trading Accounts,Business Parks,Estates and Economic Development ,Supplies & Services,Services,Professional Fees,10/10/2019,281825,1500,Smith Price Llp
External Trading Accounts,Business Parks,Estates and Economic Development ,Supplies & Services,Services,Professional Fees,10/10/2019,281826,1500,Smith Price Llp
External Trading Accounts,Business Parks,Estates and Economic Development ,Supplies & Services,Services,Professional Fees,10/10/2019,281827,1500,Smith Price Llp
"Highways, Roads & Transport",Parking Services,Plan Pol & Transport,Supplies & Services,"Printing, Stationery & General Office Expenses",External Printing,10/10/2019,280936,1500,Bulpitt Print Ltd
Central Services to the Public,Local Tax Collection,Revenues,Supplies & Services,"Printing, Stationery & General Office Expenses",Postage Costs,31/10/2019,283336,150.87,Royal Mail Group Ltd
Central Services to the Public,Local Tax Collection,Revenues,Supplies & Services,"Printing, Stationery & General Office Expenses",Postage Costs,31/10/2019,283336,603.49,Royal Mail Group Ltd
Housing Services,Housing Benefits ,Revenues,Supplies & Services,"Printing, Stationery & General Office Expenses",Postage Costs,31/10/2019,283336,377.18,Royal Mail Group Ltd
Central Services to the Public,Local Tax Collection,Revenues,Supplies & Services,"Printing, Stationery & General Office Expenses",Postage Costs,31/10/2019,283336,377.18,Royal Mail Group Ltd
Central Services to the Public,Management & Support Services,Environmental,Transport Related Expenditure,Direct Transport Costs,Workshop Consumables,31/10/2019,283335,1158.94,Md Services (Andover) Ltd
Central Services to the Public,Management & Support Services,Environmental,Supplies & Services,"Equipment, Furniture & Materials",Purchase Tools,31/10/2019,283335,351.8,Md Services (Andover) Ltd
Central Services to the Public,Management & Support Services,Estates and Economic Development ,Supplies & Services,"Equipment, Furniture & Materials",Purchase Materials (Job Cost),24/10/2019,283101,1537.13,Yesss Electrical
Planning & Development,Development Control,Planning & Building,Employees,Indirect Employee Expenses,Temporary Staff,17/10/2019,282506,1548,Matchtech Group Uk Ltd
Planning & Development,Development Control,Planning & Building,Employees,Indirect Employee Expenses,Temporary Staff,17/10/2019,282507,1548,Matchtech Group Uk Ltd
Planning & Development,Development Control,Planning & Building,Employees,Indirect Employee Expenses,Temporary Staff,17/10/2019,282508,1548,Matchtech Group Uk Ltd
Cultural & Related,Open Spaces,Environmental,Supplies & Services,"Equipment, Furniture & Materials",Purchase Equip + Materials,10/10/2019,281860,1672.6,Rigby Taylor Ltd
Cultural & Related,Open Spaces,Community and Leisure ,Supplies & Services,Services,Legal Fees,03/10/2019,280778,1575,Enforcement Bailiffs Ltd
Environmental & Regulatory,Regulatory Services,Housing and Environmental Health ,Supplies & Services,Grants and subscriptions,Capital Grants,10/10/2019,282165,1894,Epw Construction Ltd
Environmental & Regulatory,Street Cleansing (not chargeable to Highways),Environmental,Supplies & Services,"Equipment, Furniture & Materials",Maintenance Equip + Materials,17/10/2019,281439,1591.2,Imperial Polythene Products Ltd
Environmental & Regulatory,Waste management,Environmental,Employees,Indirect Employee Expenses,Agency Staff - Waged Posts,31/10/2019,283377,1053.77,24-7 Staffing
Environmental & Regulatory,Waste management,Environmental,Employees,Indirect Employee Expenses,Agency Staff - Waged Posts,31/10/2019,283377,541.02,24-7 Staffing
Cultural & Related,Recreation & Sport,Community and Leisure ,Premises related Expenditure,Repairs Alterations & Maintenance of Buildings,Estates premises costs - AMP,17/10/2019,282357,1600,Purbeck Civil Engineering Limited
Cultural & Related,Culture & Heritage,Community and Leisure ,Supplies & Services,Catering,Non-Contract Catering,31/10/2019,283029,1607.01,Carlsberg Uk Ltd
Central Services to the Public,Management & Support Services,Estates and Economic Development ,Third Party Payments,Other Establishments,Private Contractors,24/10/2019,282883,1629.01,Options Flooring Ltd
Planning & Development,Development Control,Planning & Building,Employees,Indirect Employee Expenses,Temporary Staff,17/10/2019,282505,1634,Matchtech Group Uk Ltd
Planning & Development,Development Control,Planning & Building,Employees,Indirect Employee Expenses,Temporary Staff,24/10/2019,282933,1634,Matchtech Group Uk Ltd
Planning & Development,Development Control,Planning & Building,Employees,Indirect Employee Expenses,Temporary Staff,31/10/2019,283352,1634,Matchtech Group Uk Ltd
Central Services to the Public,Management & Support Services,Estates and Economic Development ,Third Party Payments,Other Establishments,Private Contractors,10/10/2019,281857,1650,Purbeck Civil Engineering Limited
Environmental & Regulatory,Waste management,Environmental,Employees,Indirect Employee Expenses,Agency Staff - Waged Posts,03/10/2019,281235,1758.11,24-7 Staffing
Planning & Development,Economic Development,Estates and Economic Development ,Supplies & Services,Services,Training Courses,24/10/2019,283040,2118,Alternative Fitness Solutions
Planning & Development,Development Control,Planning & Building,Supplies & Services,"Equipment, Furniture & Materials",Purchase Equip + Materials,10/10/2019,281626,1124.74,Lyreco Uk Ltd
Planning & Development,Development Control,Planning & Building,Supplies & Services,"Printing, Stationery & General Office Expenses",Stationery,10/10/2019,281626,429.57,Lyreco Uk Ltd
Planning & Development,Development Control,Planning & Building,Supplies & Services,"Printing, Stationery & General Office Expenses",Print Consumables,10/10/2019,281626,216.01,Lyreco Uk Ltd
"Highways, Roads & Transport",Public Transport,Plan Pol & Transport,Third Party Payments,Transport Operators in Respect of Concessionary Fares,Voluntary Orgs Reimbursement,10/10/2019,281325,2196.5,Andover Neighbourcare
Central Services to the Public,Management & Support Services,IT,Supplies & Services,Grants & Subscriptions,Subscriptions,10/10/2019,281639,1895,Socitm Ltd
Planning & Development,Building Control,Planning & Building,Employees,Indirect Employee Expenses,Temporary Staff,10/10/2019,281345,1925,Matchtech Group Uk Ltd
Central Services to the Public,Management & Support Services,Finance,Supplies & Services,"Printing, Stationery & General Office Expenses",Postage Costs,17/10/2019,282057,2337.91,Pitney Bowes Limited
Central Services to the Public,Management & Support Services,Legal & Democratic,Supplies & Services,Services,Professional Fees,17/10/2019,282558,2366,The Law Society
Cultural & Related,Culture & Heritage,Community and Leisure ,Supplies & Services,Miscellaneous Expenses,Booking Of Acts,24/10/2019,282547,1983.13,Crowded House Entertainmnents Ltd
Environmental & Regulatory,Street Cleansing (not chargeable to Highways),Environmental,Transport Related Expenditure,Direct Transport Costs,Tyres,03/10/2019,281315,33.18,Tructyre Ats
Environmental & Regulatory,Waste management,Environmental,Transport Related Expenditure,Direct Transport Costs,Tyres,03/10/2019,281315,1102.86,Tructyre Ats
Environmental & Regulatory,Waste management,Environmental,Transport Related Expenditure,Direct Transport Costs,Tyres,03/10/2019,281315,856.56,Tructyre Ats
Cultural & Related,Culture & Heritage,Community and Leisure ,Supplies & Services,Miscellaneous Expenses,Booking Of Acts,03/10/2019,281599,1993.07,New Old Friends
External Trading Accounts,Property Investments,Estates and Economic Development ,Supplies & Services,Services,Professional Fees,10/10/2019,281828,2000,Smith Price Llp
External Trading Accounts,Business Parks,Estates and Economic Development ,Supplies & Services,Services,Professional Fees,10/10/2019,281822,2000,Smith Price Llp
External Trading Accounts,Business Parks,Estates and Economic Development ,Supplies & Services,Services,Professional Fees,31/10/2019,283268,2000,Smith Price Llp
Central Services to the Public,Management & Support Services,Environmental,Transport Related Expenditure,Direct Transport Costs,Repair Materials,03/10/2019,281343,2056.78,Terberg Matec Uk Limited
Planning & Development,Building Control,Planning & Building,Employees,Indirect Employee Expenses,Temporary Staff,17/10/2019,282504,2065,Matchtech Group Uk Ltd
Cultural & Related,Open Spaces,Environmental,Supplies & Services,"Equipment, Furniture & Materials",Purchase Equip + Materials,10/10/2019,281872,2102.4,Rigby Taylor Ltd
Planning & Development,Building Control,Planning & Building,Employees,Indirect Employee Expenses,Temporary Staff,10/10/2019,281841,2170,Matchtech Group Uk Ltd
Central Services to the Public,Management & Support Services,Estates and Economic Development ,Premises related Expenditure,Energy Costs,Gas,24/10/2019,282850,2488.56,Total Gas & Power Ltd
Environmental & Regulatory,Street Cleansing (not chargeable to Highways),Environmental,Transport Related Expenditure,Direct Transport Costs,Tyres,03/10/2019,281495,342.9,Tructyre Ats
Environmental & Regulatory,Waste management,Environmental,Transport Related Expenditure,Direct Transport Costs,Tyres,03/10/2019,281495,1868.02,Tructyre Ats
Cultural & Related,Culture & Heritage,Community and Leisure ,Supplies & Services,Miscellaneous Expenses,Booking Of Acts,03/10/2019,281287,2667.34,Desperado
Central Services to the Public,Management & Support Services,Estates and Economic Development ,Third Party Payments,Other Establishments,Private Contractors,10/10/2019,281858,2224.29,Options Flooring Ltd
Central Services to the Public,Management & Support Services,Estates and Economic Development ,Third Party Payments,Other Establishments,Contract Catering,17/10/2019,281950,2273.89,Edwards And Ward Ltd
Planning & Development,Building Control,Planning & Building,Employees,Indirect Employee Expenses,Temporary Staff,24/10/2019,282934,2275,Matchtech Group Uk Ltd
Planning & Development,Building Control,Planning & Building,Employees,Indirect Employee Expenses,Temporary Staff,10/10/2019,281344,2292.5,Matchtech Group Uk Ltd
Cultural & Related,Open Spaces,Environmental,Supplies & Services,"Equipment, Furniture & Materials",Equipment Lease Rentals,17/10/2019,282365,2300,Lister Wilder
Planning & Development,Building Control,Planning & Building,Employees,Indirect Employee Expenses,Temporary Staff,31/10/2019,283351,2310,Matchtech Group Uk Ltd
Cultural & Related,Open Spaces,Community and Leisure ,Premises related Expenditure,Grounds Maintenance Costs,Gm - Additional Works,31/10/2019,283371,2370,Fernden Construction (Winchester) Ltd
Cultural & Related,Open Spaces,Environmental,Supplies & Services,"Equipment, Furniture & Materials",Purchase Equip + Materials,03/10/2019,281245,538.35,24-7 Staffing
Environmental & Regulatory,Waste management,Environmental,Supplies & Services,"Equipment, Furniture & Materials",Purchase Equip + Materials,03/10/2019,281245,1838.13,24-7 Staffing
Planning & Development,Development Control,Planning & Building,Supplies & Services,Communications & Computing,Software Maintenance,31/10/2019,283572,2383,Influential Software Services Ltd
Central Services to the Public,Management & Support Services,Estates and Economic Development ,Supplies & Services,Services,Professional Fees,31/10/2019,282638,2400,Dentons Ukmea Llp
Planning & Development,Planning Policy,Plan Pol & Transport,Supplies & Services,Miscellaneous Expenses,S106 Funded Projects,24/10/2019,282527,2958.75,Stagecoach Services Limited
Central Services,Corporate & Democratic Core,Corporate & Democratic,Supplies & Services,"Printing, Stationery & General Office Expenses",External Printing,31/10/2019,283630,3062,Mortons Print
Cultural & Related,Recreation & Sport,Community and Leisure ,Supplies & Services,Grants and subscriptions,Capital Grants,10/10/2019,282157,3070,Over Wallop Parish Council
Environmental & Regulatory,Waste management,Environmental,Employees,Indirect Employee Expenses,Agency Staff - Waged Posts,03/10/2019,281279,1548.9,24-7 Staffing
Environmental & Regulatory,Waste management,Environmental,Employees,Indirect Employee Expenses,Agency Staff - Waged Posts,03/10/2019,281279,1024.43,24-7 Staffing
Environmental & Regulatory,Regulatory Services,Housing and Environmental Health ,Supplies & Services,"Equipment, Furniture & Materials",Purchase Equip + Materials,17/10/2019,281913,2584.44,Killgerm Chemicals Ltd
Cultural & Related,Culture & Heritage,Community and Leisure ,Supplies & Services,Miscellaneous Expenses,Booking Of Acts,17/10/2019,282513,2595.34,No Third Entertainments Llp
Cultural & Related,Culture & Heritage,Community and Leisure ,Supplies & Services,Miscellaneous Expenses,Booking Of Acts,10/10/2019,282035,3115.34,Jaylark Productions
Cultural & Related,Open Spaces,Environmental,Supplies & Services,"Equipment, Furniture & Materials",Purchase Equip + Materials,24/10/2019,282826,2628,Rigby Taylor Ltd
External Trading Accounts,Business Parks,Estates and Economic Development ,Supplies & Services,Services,Professional Fees,10/10/2019,281829,2694.78,Smith Price Llp
Cultural & Related,Culture & Heritage,Community and Leisure ,Supplies & Services,Miscellaneous Expenses,Booking Of Acts,24/10/2019,282868,2738.66,Sweeney Entertainments
Cultural & Related,Recreation & Sport,Community and Leisure ,Premises related Expenditure,Repairs Alterations & Maintenance of Buildings,Estates premises costs - AMP,24/10/2019,283044,2760.5,Ministry Of Play Ltd
Planning & Development,Development Control,Planning & Building,Third Party Payments,Commuted Sum,s106 Developer contributions,17/10/2019,282644,3382.82,North Baddesley P C
Environmental & Regulatory,Waste management,Environmental,Supplies & Services,"Equipment, Furniture & Materials",Purchase Equip + Materials,03/10/2019,281246,1893,24-7 Staffing
Environmental & Regulatory,Waste management,Environmental,Supplies & Services,"Equipment, Furniture & Materials",Purchase Equip + Materials,03/10/2019,281246,953.71,24-7 Staffing
Cultural & Related,Recreation & Sport,Community and Leisure ,Premises related Expenditure,Repairs Alterations & Maintenance of Buildings,Estates premises costs - AMP,03/10/2019,281449,2867.75,Ministry Of Play Ltd
Cultural & Related,Open Spaces,Environmental,Transport Related Expenditure,Direct Transport Costs,External Garages,03/10/2019,281312,1565.09,T H White Ltd
Cultural & Related,Open Spaces,Environmental,Transport Related Expenditure,Direct Transport Costs,Repair Materials,03/10/2019,281312,1345.36,T H White Ltd
Cultural & Related,Open Spaces,Community and Leisure ,Premises related Expenditure,Grounds Maintenance Costs,Gm - Additional Works,03/10/2019,279177,2929,Fabtech Engineering Lted
Environmental & Regulatory,Waste management,Environmental,Employees,Indirect Employee Expenses,Agency Staff - Waged Posts,24/10/2019,283112,2186.94,24-7 Staffing
Environmental & Regulatory,Waste management,Environmental,Employees,Indirect Employee Expenses,Agency Staff - Waged Posts,24/10/2019,283112,828.22,24-7 Staffing
Central Services,Corporate & Democratic Core,Corporate & Democratic,Supplies & Services,Services,Project Consultancy - Policy,03/10/2019,279327,3057.5,Nexus Planning Ltd
Cultural & Related,Culture & Heritage,Community and Leisure ,Supplies & Services,Miscellaneous Expenses,Booking Of Acts,02/10/2019,280937,3119.34,The Billy Fury Story Ltd
Cultural & Related,Culture & Heritage,Community and Leisure ,Supplies & Services,Miscellaneous Expenses,Booking Of Acts,31/10/2019,283315,3130.66,Talon Music Ltd
Cultural & Related,Culture & Heritage,Estates and Economic Development ,Supplies & Services,"Printing, Stationery & General Office Expenses",Licences / Affiliation Fees,31/10/2019,283552,613.82,Ppl Prs Ltd
Cultural & Related,Culture & Heritage,Estates and Economic Development ,Supplies & Services,"Printing, Stationery & General Office Expenses",Licences / Affiliation Fees,31/10/2019,283552,1,Ppl Prs Ltd
Cultural & Related,Culture & Heritage,Estates and Economic Development ,Supplies & Services,"Printing, Stationery & General Office Expenses",Licences / Affiliation Fees,31/10/2019,283552,566.33,Ppl Prs Ltd
Central Services to the Public,Management & Support Services,Estates and Economic Development ,Supplies & Services,"Printing, Stationery & General Office Expenses",Licences / Affiliation Fees,31/10/2019,283552,2014.39,Ppl Prs Ltd
Central Services to the Public,Management & Support Services,Environmental,Transport Related Expenditure,Direct Transport Costs,Diesel,31/10/2019,283099,3200.1,Wp Group Limited
Central Services to the Public,Management & Support Services,Estates and Economic Development ,Supplies & Services,Services,Professional Fees,31/10/2019,283357,3239,Milestone Transport Planning Ltd
Central Services to the Public,Management & Support Services,Estates and Economic Development ,Third Party Payments,Other Establishments,Private Contractors,10/10/2019,281855,3252,Spectrum Workplace Llp
Central Services to the Public,Management & Support Services,Environmental,Supplies & Services,Communications & Computing,Communication Links,31/10/2019,283616,3252,Virgin Media Payments Ltd
Central Services to the Public,Management & Support Services,Estates and Economic Development ,Premises related Expenditure,Repairs Alterations & Maintenance of Buildings,Building Maint - Non Estates,24/10/2019,282898,3269.8,C Wheeler Contstruction Ltd
Cultural & Related,Culture & Heritage,Community and Leisure ,Supplies & Services,Miscellaneous Expenses,Booking Of Acts,31/10/2019,283716,3410,E Brunjes Productions Ltd
Cultural & Related,Culture & Heritage,Community and Leisure ,Supplies & Services,Miscellaneous Expenses,Booking Of Acts,10/10/2019,282081,3410,Jethro Enterprises Ltd
Environmental & Regulatory,Waste management,Environmental,Employees,Indirect Employee Expenses,Agency Staff - Waged Posts,17/10/2019,282624,2641.33,24-7 Staffing
Environmental & Regulatory,Waste management,Environmental,Employees,Indirect Employee Expenses,Agency Staff - Waged Posts,17/10/2019,282624,854.08,24-7 Staffing
Environmental & Regulatory,Regulatory Services,Housing and Environmental Health ,Supplies & Services,Grants and subscriptions,Capital Grants,31/10/2019,283692,4208.73,Northfield Property Solutions Limited
Environmental & Regulatory,Regulatory Services,Housing and Environmental Health ,Supplies & Services,Grants and subscriptions,Capital Grants,24/10/2019,283128,4349.22,Acer Renovations Ltd
Environmental & Regulatory,Regulatory Services,Housing and Environmental Health ,Supplies & Services,Miscellaneous Expenses,Kennel fees,10/10/2019,281580,2123.8,Three Oak Boarding Kennels
Environmental & Regulatory,Waste management,Environmental,Supplies & Services,"Equipment, Furniture & Materials",Purchase Equip + Materials,10/10/2019,281248,4500,Carbery Plastics
Environmental & Regulatory,Regulatory Services,Housing and Environmental Health ,Supplies & Services,Grants and subscriptions,Capital Grants,10/10/2019,282170,4533.7,P M Plumbing & Carpentry
External Trading Accounts,Business Parks,Estates and Economic Development ,Supplies & Services,"Equipment, Furniture & Materials",Equipment Hire,31/10/2019,282636,388.17,Woosh Washrooms
Cultural & Related,Tourism,Estates and Economic Development ,Supplies & Services,"Equipment, Furniture & Materials",Equipment Hire,31/10/2019,282636,36.23,Woosh Washrooms
Cultural & Related,Culture & Heritage,Estates and Economic Development ,Supplies & Services,"Equipment, Furniture & Materials",Equipment Hire,31/10/2019,282636,144.92,Woosh Washrooms
Central Services to the Public,Management & Support Services,Estates and Economic Development ,Supplies & Services,"Equipment, Furniture & Materials",Equipment Hire,31/10/2019,282636,2939.63,Woosh Washrooms
Central Services to the Public,Management & Support Services,Estates and Economic Development ,Supplies & Services,"Equipment, Furniture & Materials",Equipment Hire,31/10/2019,282636,108.69,Woosh Washrooms
Central Services to the Public,Management & Support Services,Estates and Economic Development ,Supplies & Services,"Equipment, Furniture & Materials",Equipment Hire,31/10/2019,282636,36.23,Woosh Washrooms
Cultural & Related,Recreation & Sport,Community and Leisure ,Supplies & Services,"Equipment, Furniture & Materials",Equipment Hire,31/10/2019,282636,144.92,Woosh Washrooms
Cultural & Related,Open Spaces,Community and Leisure ,Supplies & Services,"Equipment, Furniture & Materials",Purchase Equip + Materials,31/10/2019,283062,3890.3,Downs View Nurseries Ltd
Environmental & Regulatory,Regulatory Services,Housing and Environmental Health ,Supplies & Services,Grants and subscriptions,Capital Grants,17/10/2019,282658,4717,1st Choice Stairlifts Ltd
Environmental & Regulatory,Regulatory Services,Housing and Environmental Health ,Supplies & Services,Grants and subscriptions,Capital Grants,10/10/2019,282162,4752.71,Nhp (Romsey) Ltd
Central Services to the Public,Management & Support Services,Estates and Economic Development ,Third Party Payments,Private contractors,Main Contractor Costs,24/10/2019,283041,4014.75,Ministry Of Play Ltd
Cultural & Related,Recreation & Sport,Community and Leisure ,Premises related Expenditure,Repairs Alterations & Maintenance of Buildings,Estates premises costs - AMP,24/10/2019,283043,4014.75,Ministry Of Play Ltd
Environmental & Regulatory,Regulatory Services,Housing and Environmental Health ,Supplies & Services,Grants and subscriptions,Capital Grants,17/10/2019,282655,4901.28,Lifestyle Solutions
Environmental & Regulatory,Regulatory Services,Housing and Environmental Health ,Supplies & Services,Grants and subscriptions,Capital Grants,03/10/2019,281655,4901.45,J D Codd Ltd
Central Services to the Public,Management & Support Services,Chief Executive's,Employees,Indirect Employee Expenses,Post Entry Training,10/10/2019,281869,4112.75,Kba Solutions Ltd
Central Services to the Public,Management & Support Services,Finance,Transport Related Expenditure,Contract Hire and Operating Leases,Officer lease cars,03/10/2019,281320,4919.58,Lex Autolease Ltd
Central Services to the Public,Management & Support Services,Estates and Economic Development ,Third Party Payments,Private contractors,Main Contractor Costs,03/10/2019,281448,4000,Ministry Of Play Ltd
Cultural & Related,Recreation & Sport,Community and Leisure ,Premises related Expenditure,Repairs Alterations & Maintenance of Buildings,Estates premises costs - AMP,03/10/2019,281448,105.1,Ministry Of Play Ltd
Central Services to the Public,Management & Support Services,Estates and Economic Development ,Third Party Payments,Private contractors,Main Contractor Costs,24/10/2019,283042,4114.75,Ministry Of Play Ltd
Environmental & Regulatory,Regulatory Services,Housing and Environmental Health ,Employees,Indirect Employee Expenses,Temporary Staff,10/10/2019,281586,4149.98,Contractor Umbrella Ltd
Environmental & Regulatory,Regulatory Services,Housing and Environmental Health ,Supplies & Services,Grants and subscriptions,Capital Grants,10/10/2019,282161,5018.7,Shield Building Services (Uk) Ltd
Cultural & Related,Open Spaces,Community and Leisure ,Premises related Expenditure,Grounds Maintenance Costs,Gm - Additional Works,10/10/2019,279974,4290,Rocon Contractors Ltd
Cultural & Related,Open Spaces,Community and Leisure ,Premises related Expenditure,Repairs Alterations & Maintenance of Buildings,Estates premises costs - AMP,10/10/2019,279973,4290,Rocon Contractors Ltd
Central Services to the Public,Elections,Legal & Democratic,Supplies & Services,Communications & Computing,Computer Software,03/10/2019,281306,4510.88,Electoral Reform Services
Central Services,Corporate & Democratic Core,Corporate & Democratic,Supplies & Services,Grants & Subscriptions,Subscriptions,17/10/2019,281281,4513.07,Idox Software Ltd
Central Services to the Public,Management & Support Services,IT,Supplies & Services,Services,Project Consultancy - Systems,03/10/2019,279147,4550,Imperial Civil Enforcement Solutions
Central Services to the Public,Management & Support Services,Environmental,Transport Related Expenditure,Direct Transport Costs,Diesel,24/10/2019,282635,4779.9,Wp Group Limited
Cultural & Related,Open Spaces,Community and Leisure ,Third Party Payments,Private contractors,Main Contractor Costs,24/10/2019,282896,413,Centrewire Ltd
Cultural & Related,Open Spaces,Community and Leisure ,Supplies & Services,"Equipment, Furniture & Materials",Purchase Equip + Materials,24/10/2019,282896,413,Centrewire Ltd
Cultural & Related,Open Spaces,Community and Leisure ,Premises related Expenditure,Grounds Maintenance Costs,Gm - Additional Works,24/10/2019,282896,413,Centrewire Ltd
Cultural & Related,Open Spaces,Community and Leisure ,Supplies & Services,"Equipment, Furniture & Materials",Purchase Equip + Materials,24/10/2019,282896,1652,Centrewire Ltd
Cultural & Related,Open Spaces,Community and Leisure ,Premises related Expenditure,Grounds Maintenance Costs,Snagging Works,24/10/2019,282896,2065,Centrewire Ltd
Cultural & Related,Recreation & Sport,Community and Leisure ,Premises related Expenditure,Repairs Alterations & Maintenance of Buildings,Estates premises costs - AMP,03/10/2019,281447,4999.6,Ministry Of Play Ltd
Central Services,Corporate & Democratic Core,Corporate & Democratic,Supplies & Services,Services,Project Consultancy - Policy,03/10/2019,281585,5108,Nexus Planning Ltd
External Trading Accounts,Business Parks,Estates and Economic Development ,Premises related Expenditure,Cleaning and domestic supplies,Contract Cleaning - Non Estates,10/10/2019,281625,207.01,Hi-Spec Facilities Services Plc
Cultural & Related,Culture & Heritage,Estates and Economic Development ,Premises related Expenditure,Cleaning and domestic supplies,Contract Cleaning - Non Estates,10/10/2019,281625,414.02,Hi-Spec Facilities Services Plc
Central Services to the Public,Management & Support Services,Estates and Economic Development ,Premises related Expenditure,Cleaning and domestic supplies,Contract Cleaning - Non Estates,10/10/2019,281625,172.51,Hi-Spec Facilities Services Plc
Environmental & Regulatory,Regulatory Services,Estates and Economic Development ,Premises related Expenditure,Cleaning and domestic supplies,Contract Cleaning - Non Estates,10/10/2019,281625,1932.11,Hi-Spec Facilities Services Plc
Cultural & Related,Recreation & Sport,Community and Leisure ,Premises related Expenditure,Cleaning and domestic supplies,Contract Cleaning - Non Estates,10/10/2019,281625,724.54,Hi-Spec Facilities Services Plc
Cultural & Related,Recreation & Sport,Community and Leisure ,Premises related Expenditure,Cleaning and domestic supplies,Contract Cleaning - Non Estates,10/10/2019,281625,414.02,Hi-Spec Facilities Services Plc
Cultural & Related,Recreation & Sport,Community and Leisure ,Premises related Expenditure,Cleaning and domestic supplies,Contract Cleaning - Non Estates,10/10/2019,281625,414.02,Hi-Spec Facilities Services Plc
Environmental & Regulatory,"Cemetery, Cremation and Mortuary Services",Community and Leisure ,Premises related Expenditure,Cleaning and domestic supplies,Contract Cleaning - Non Estates,10/10/2019,281625,34.5,Hi-Spec Facilities Services Plc
Cultural & Related,Open Spaces,Community and Leisure ,Premises related Expenditure,Cleaning and domestic supplies,Contract Cleaning - Non Estates,10/10/2019,281625,724.54,Hi-Spec Facilities Services Plc
"Highways, Roads & Transport",Parking Services,Plan Pol & Transport,Premises related Expenditure,Cleaning and domestic supplies,Contract Cleaning - Non Estates,10/10/2019,281625,103.5,Hi-Spec Facilities Services Plc
Central Services to the Public,Management & Support Services,Environmental,Transport Related Expenditure,Direct Transport Costs,Diesel,10/10/2019,281594,5333,Wp Group Limited
Central Services,Corporate & Democratic Core,Corporate & Democratic,Supplies & Services,Grants & Subscriptions,Subscriptions,10/10/2019,281921,5400,South East Employers
Environmental & Regulatory,Waste management,Environmental,Supplies & Services,Miscellaneous Expenses,Recycling Bank Emptying,10/10/2019,279400,5969.95,Fcc Recycling (Uk) Ltd
External Trading Accounts,Economic Development,Estates and Economic Development ,Supplies & Services,Miscellaneous Expenses,Promotions / Special Events,24/10/2019,283115,6012,Breeze People Ltd
Central Services to the Public,Local Land Charges,Legal & Democratic,Supplies & Services,Miscellaneous Expenses,Land Charges Fees,24/10/2019,282503,6201,Hampshire County Council
Cultural & Related,Recreation & Sport,Estates and Economic Development ,Premises related Expenditure,Water Services,Water And Sewerage Charges,03/10/2019,281454,7452.94,Castle Water Limited
Central Services to the Public,Management & Support Services,Estates and Economic Development ,Supplies & Services,"Equipment, Furniture & Materials",Purchase Equip + Materials,03/10/2019,281595,6395.32,Openreach Bt
Central Services,Corporate & Democratic Core,Corporate & Democratic,Supplies & Services,"Printing, Stationery & General Office Expenses",Postage Costs,10/10/2019,281922,6498.66,Leaflet Distribution Services Ltd
Central Services to the Public,Management & Support Services,IT,Supplies & Services,Communications & Computing,Software Maintenance,10/10/2019,281641,6500,Getmapping Plc
Cultural & Related,Recreation & Sport,Estates and Economic Development ,Premises related Expenditure,Water Services,Water And Sewerage Charges,31/10/2019,277893,8030.36,Business Stream
Cultural & Related,Recreation & Sport,Community and Leisure ,Supplies & Services,Services,Professional Fees,24/10/2019,282627,7069.5,Cbre
Central Services to the Public,Local Land Charges,Legal & Democratic,Supplies & Services,Miscellaneous Expenses,Land Charges Fees,03/10/2019,281313,7332,Hampshire County Council
Cultural & Related,Recreation & Sport,Community and Leisure ,Supplies & Services,Grants and subscriptions,Capital Grants,10/10/2019,282158,9027.55,Stockbridge Town Hall Cio
Cultural & Related,Culture & Heritage,Community and Leisure ,Supplies & Services,Services,Project Consultancy - Policy,03/10/2019,281253,7890.23,Rocon Contractors Ltd
"Highways, Roads & Transport",Parking Services,Plan Pol & Transport,Transport Related Costs,Management Fee,Car Park charges,10/10/2019,281840,8002.09,Cobalt Telephone Technologies
Cultural & Related,Open Spaces,Community and Leisure ,Premises related Expenditure,Grounds Maintenance Costs,Non Contract Tree Works,17/10/2019,280369,268.5,Gristwood & Toms Ltd
Cultural & Related,Open Spaces,Community and Leisure ,Premises related Expenditure,Grounds Maintenance Costs,Non Contract Tree Works,17/10/2019,280369,361.5,Gristwood & Toms Ltd
Cultural & Related,Open Spaces,Community and Leisure ,Premises related Expenditure,Repairs Alterations & Maintenance of Buildings,Estates premises costs - AMP,17/10/2019,280369,7602.34,Gristwood & Toms Ltd
Planning & Development,Economic Development,Estates and Economic Development ,Supplies & Services,Grants & Subscriptions,Subscriptions,10/10/2019,279728,10000,Hampshire County Council
Central Services to the Public,Elections,Legal & Democratic,Supplies & Services,"Printing, Stationery & General Office Expenses",External Printing,31/10/2019,283307,8653.8,Financial Data Management Plc
Environmental & Regulatory,Regulatory Services,Housing and Environmental Health ,Supplies & Services,Grants and subscriptions,Capital Grants,17/10/2019,282656,10418,Lifestyle Solutions
Central Services to the Public,Management & Support Services,IT,Support Services,IT,IT Hardware costs,31/10/2019,281451,9109,Xma Limited
Cultural & Related,Open Spaces,Community and Leisure ,Premises related Expenditure,Grounds Maintenance Costs,Gm - Additional Works,03/10/2019,281238,1989.42,Going Underground Ltd
Cultural & Related,Open Spaces,Community and Leisure ,Premises related Expenditure,Grounds Maintenance Costs,Gm - Additional Works,03/10/2019,281238,1815.63,Going Underground Ltd
Cultural & Related,Open Spaces,Community and Leisure ,Premises related Expenditure,Repairs Alterations & Maintenance of Buildings,Estates premises costs - AMP,03/10/2019,281238,5710,Going Underground Ltd
Central Services to the Public,Management & Support Services,IT,Supplies & Services,Communications & Computing,Telephone System Maintenance,03/10/2019,281619,10000,Nuvola Distribution Ltd
Central Services,Corporate & Democratic Core,Corporate & Democratic,Supplies & Services,Communications & Computing,Software Maintenance,17/10/2019,282555,10000,Web Labs Ltd
Central Services,Corporate & Democratic Core,Corporate & Democratic,Supplies & Services,Miscellaneous Expenses,External Audit Fees,10/10/2019,281908,10170,Ernst & Young Llp
Central Services to the Public,Management & Support Services,Environmental,Transport Related Expenditure,Direct Transport Costs,Diesel,10/10/2019,281593,10666,Wp Group Limited
Central Services to the Public,Management & Support Services,Environmental,Transport Related Expenditure,Direct Transport Costs,Vehicles and Plant,17/10/2019,281859,10750,Andover Fork Truck Services Ltd
Planning & Development,Development Control,Planning & Building,Supplies & Services,Services,Project Consultancy - Policy,10/10/2019,280223,11421,Hampshire County Council
Cultural & Related,Open Spaces,Community and Leisure ,Third Party Payments,Private contractors,Main Contractor Costs,03/10/2019,281642,11424,Personal Data - Data Protection Act 1998
Planning & Development,Community Development,Community and Leisure ,Supplies & Services,Grants & Subscriptions,Grants,17/10/2019,282652,13742,Unity
Central Services to the Public,Management & Support Services,Environmental,Transport Related Expenditure,Direct Transport Costs,Diesel,24/10/2019,282907,11662.2,Wp Group Limited
Environmental & Regulatory,Regulatory Services,Housing and Environmental Health ,Supplies & Services,Grants and subscriptions,Capital Grants,17/10/2019,282657,14485,Liftech Systems (Se) Ltd
Central Services to the Public,Management & Support Services,Estates and Economic Development ,Third Party Payments,Private contractors,Main Contractor Costs,10/10/2019,281911,12612.4,Corrigenda Ltd
Planning & Development,Development Control,Planning & Building,Third Party Payments,Commuted Sum,s106 Developer contributions,17/10/2019,282643,15148.93,Hampshire County Council
Planning & Development,Development Control,Planning & Building,Third Party Payments,Commuted Sum,s106 Developer contributions,24/10/2019,283116,16902.68,Hampshire County Council
Environmental & Regulatory,Regulatory Services,Estates and Economic Development ,Premises related Expenditure,Repairs Alterations & Maintenance of Buildings,Estates premises costs - AMP,10/10/2019,281941,14592.43,Wessex Commercial Division
Planning & Development,Planning Policy,Plan Pol & Transport,Supplies & Services,Services,Project Consultancy - Policy,31/10/2019,278346,14825,Lambert Smith Hampton
Cultural & Related,Recreation & Sport,Community and Leisure ,Premises related Expenditure,Repairs Alterations & Maintenance of Buildings,Estates premises costs - AMP,17/10/2019,280209,14834.77,Ava Recreation
Central Services to the Public,Local Tax Collection,Revenues,Supplies & Services,Miscellaneous Expenses,Other Miscellaneous Costs,10/10/2019,281843,18313.25,Andover Town Centre Bid Ltd
Central Services to the Public,Management & Support Services,Environmental,Transport Related Expenditure,Direct Transport Costs,Vehicles and Plant,17/10/2019,282659,16650,R Hunt (Agricultural Engineers) Ltd
Cultural & Related,Culture & Heritage,Community and Leisure ,Supplies & Services,Grants & Subscriptions,Grants,24/10/2019,282553,22132,King Johns House And Tudor Cottage Trust Ltd
Central Services to the Public,Management & Support Services,HR Services,Third Party Payments,Other Local Authorities,Shared Service Contract Costs,24/10/2019,282640,18592.28,Hampshire County Council
Cultural & Related,Recreation & Sport,Community and Leisure ,Supplies & Services,Grants and subscriptions,Capital Grants,03/10/2019,281657,25000,Valley Park Community Association
Central Services to the Public,Management & Support Services,Estates and Economic Development ,Premises related Expenditure,Repairs Alterations & Maintenance of Buildings,Estates premises costs - AMP,03/10/2019,281028,23945.14,Safespec Building Services Ltd
Central Services to the Public,Management & Support Services,Estates and Economic Development ,Premises related Expenditure,Repairs Alterations & Maintenance of Buildings,Estates premises costs - AMP,31/10/2019,283306,29266.28,Safespec Building Services Ltd
Cultural & Related,Open Spaces,Community and Leisure ,Third Party Payments,Private contractors,Main Contractor Costs,31/10/2019,280386,34200.13,Rocon Contractors Ltd
Central Services to the Public,Management & Support Services,Finance,Supplies & Services,Services,Insurance ,24/10/2019,282983,42622.92,Legal & General Assurance Society Ltd
Cultural & Related,Recreation & Sport,Community and Leisure ,Third Party Payments,Private contractors,Main Contractor Costs,17/10/2019,280772,38200,Gravity Engineering Ltd
External Trading Accounts,Business Parks,Estates and Economic Development ,Premises related Expenditure,Miscellaneous Expenses,Service Charge,24/10/2019,282496,48166.66,Test Valley Borough Council
Environmental & Regulatory,Regulatory Services,Estates and Economic Development ,Premises related Expenditure,Cleaning and domestic supplies,Contract Cleaning - Non Estates,17/10/2019,282495,13788.6,Test Valley Borough Council
"Highways, Roads & Transport",Parking Services,Plan Pol & Transport,Supplies & Services,Services,Professional Fees,17/10/2019,282495,35456.4,Test Valley Borough Council
External Trading Accounts,Business Parks,Estates and Economic Development ,Premises related Expenditure,Miscellaneous Expenses,Service Charge,24/10/2019,282497,50240,Test Valley Borough Council
Planning & Development,Development Control,Planning & Building,Third Party Payments,Commuted Sum,s106 Developer contributions,17/10/2019,282642,55624.95,Ampfield Parish Council
Planning & Development,Community Development,Community and Leisure ,Supplies & Services,Grants & Subscriptions,Grants,03/10/2019,281656,56070.5,Citizen'S Advice Test Valley
External Trading Accounts,Business Parks,Estates and Economic Development ,Premises related Expenditure,Miscellaneous Expenses,Service Charge,24/10/2019,282498,59767.5,Test Valley Borough Council
External Trading Accounts,Business Parks,Estates and Economic Development ,Premises related Expenditure,Miscellaneous Expenses,Service Charge,24/10/2019,282502,66724.5,Test Valley Borough Council
Cultural & Related,Recreation & Sport,Community and Leisure ,Third Party Payments,Private contractors,Main Contractor Costs,17/10/2019,280773,58550,Gravity Engineering Ltd
Central Services to the Public,Management & Support Services,IT,Support Services,IT,IT Hardware costs,17/10/2019,282493,61604.53,Ricoh Uk Ltd
Central Services to the Public,Management & Support Services,IT,Support Services,IT,IT Hardware costs,31/10/2019,280819,91327.6,Xma Limited
Cultural & Related,Recreation & Sport,Community and Leisure ,Third Party Payments,Private contractors,Main Contractor Costs,17/10/2019,273594,119998.69,Proludic Ltd
